Workbook

Sheet VolumeData
G2: CIP Avg Annual Est | I2: T1 | J2: T2 | K2: T3
G3: =SUM(I3:K3) -> 2149 | I3: 1001.316053 | J3: 1147.683947 | K3: 0
G4: 2066 | I4: 1001.316053 | J4: 1064.683947 | K4: 0
G5: =SUM(I5:K5) -> 4693 | I5: 1198.170987 | J5: 2875.004093 | K5: 619.8249204
G6: 4720 | I6: 1198.735789 | J6: 2884.065484 | K6: 637.1987267
G7: 26933 | I7: 9831.543338 | J7: 17101.45666 | K7: 0
G8: 75685 | I8: 11715.32619 | J8: 45792.71842 | K8: 18176.95539
F11: Volumes under CIP m3/cx | R11: Actual/Forecasted Volumes
C13: Connection Growth (Rate 1) | D13: %
C14: Connection Growth (Rate 6) | D14: %
C16: Rate Class | D16: Tier | H16: 2020 | I16: 2021 | T16: 2020 | U16: 2021
H17: *Year-end customer connections | T17: *Year-end customer connections
F18: RATE 1 | G18: Existing Residential | H18: 161.2089725 | I18: 1694.547188 | R18: RATE 1 | S18: Existing Residential | T18: 161.2089725 | U18: 1694.547188
G19: New Residential | H19: 12.79102752 | I19: 134.4528123 | S19: New Residential | T19: 12.79102752 | U19: 134.4528123
G20: Small Commercial | H20: 1 | I20: 18 | S20: Small Commercial | T20: 1 | U20: 18
G21: Small Agricultural | H21: 0 | I21: 0 | S21: Small Agricultural | T21: 0 | U21: 0
F22: RATE 6 | G22: Medium Commercial | H22: 0 | I22: 5 | R22: RATE 6 | S22: Medium Commercial | T22: 0 | U22: 5
G23: Large Commercial | H23: 0 | I23: 2 | S23: Large Commercial | T23: 0 | U23: 2
H25: *this # represents mid-year connections | T25: *this # represents mid-year connections
F26: RATE 1 | G26: Existing Residential | H26: 80.60448624 | I26: 927.8780801 | R26: RATE 1 | S26: Existing Residential | T26: 80.60448624 | U26: 927.8780801
G27: New Residential | H27: 6.395513759 | I27: 73.62191988 | S27: New Residential | T27: 6.395513759 | U27: 73.62191988
G28: Small Commercial | H28: 0.5 | I28: 9.5 | S28: Small Commercial | T28: 0.5 | U28: 9.5
G29: Small Agricultural | H29: 0 | I29: 0 | S29: Small Agricultural | T29: 0 | U29: 0
F30: RATE 6 | G30: Medium Commercial | H30: 0 | I30: 2.5 | R30: RATE 6 | S30: Medium Commercial | T30: 0 | U30: 2.5
G31: Large Commercial | H31: 0 | I31: 1 | S31: Large Commercial | T31: 0 | U31: 1
H32: *T1 volume | T32: *T1 volume
C33: Rate 1 | D33: Tier 1 | F33: RATE 1 | G33: Existing Residential | H33: =H26*$I3 -> 80710.566 | I33: 929099.2166 | R33: RATE 1 | S33: Existing Residential | T33: 2517.176192 | U33: 506667.8488
C34: Rate 1 | D34: Tier 1 | G34: New Residential | H34: 6403.930593 | I34: 73718.81022 | S34: New Residential | T34: 199.7238084 | U34: 40201.25119
C35: Rate 1 | D35: Tier 1 | G35: Small Commercial | H35: 599.0854934 | I35: 11382.62437 | S35: Small Commercial | T35: 0 | U35: 9031.8
C36: Rate 1 | D36: Tier 1 | G36: Small Agricultural | H36: 0 | I36: 0 | S36: Small Agricultural | T36: 0 | U36: 0
C37: Rate 6 | D37: Tier 1 | F37: RATE 6 | G37: Medium Commercial | H37: 0 | I37: 24578.85834 | R37: RATE 6 | S37: Medium Commercial | T37: 0 | U37: 5510
C38: Rate 6 | D38: Tier 1 | G38: Large Commercial | H38: 0 | I38: 11715.32619 | S38: Large Commercial | T38: 0 | U38: 10000
H40: *T2 volume | T40: *T2 volume
C41: Rate 1 | D41: Tier 2 | F41: RATE 1 | G41: Existing Residential | H41: =H26*$J3 -> 92508.47493 | I41: 1064910.778 | R41: RATE 1 | S41: Existing Residential | T41: 332.7104364 | U41: 258366.7924
C42: Rate 1 | D42: Tier 2 | G42: New Residential | H42: 6809.200834 | I42: 78384.07627 | S42: New Residential | T42: 24.48956361 | U42: 19017.40764
C43: Rate 1 | D43: Tier 2 | G43: Small Commercial | H43: 1437.502046 | I43: 27312.53888 | S43: Small Commercial | T43: 0 | U43: 13582.2
C44: Rate 1 | D44: Tier 2 | G44: Small Agricultural | H44: 0 | I44: 0 | S44: Small Agricultural | T44: 0 | U44: 0
C45: Rate 6 | D45: Tier 2 | F45: RATE 6 | G45: Medium Commercial | H45: 0 | I45: 42753.64166 | R45: RATE 6 | S45: Medium Commercial | T45: 0 | U45: 2689
C46: Rate 6 | D46: Tier 2 | G46: Large Commercial | H46: 0 | I46: 45792.71842 | S46: Large Commercial | T46: 0 | U46: 56088.7
H48: *T3 volume | T48: *T3 volume
C49: Rate 1 | D49: Tier 3 | F49: RATE 1 | G49: Existing Residential | H49: =H26*$K3 -> 0 | I49: 0 | R49: RATE 1 | S49: Existing Residential | T49: 0 | U49: 11156.58738
C50: Rate 1 | D50: Tier 3 | G50: New Residential | H50: 0 | I50: 0 | S50: New Residential | T50: 0 | U50: 885.2126159
C51: Rate 1 | D51: Tier 3 | G51: Small Commercial | H51: 309.9124602 | I51: 5888.336744 | S51: Small Commercial | T51: 0 | U51: 8653.8
C52: Rate 1 | D52: Tier 3 | G52: Small Agricultural | H52: 0 | I52: 0 | S52: Small Agricultural | T52: 0 | U52: 0
C53: Rate 6 | D53: Tier 3 | F53: RATE 6 | G53: Medium Commercial | H53: 0 | I53: 0 | R53: RATE 6 | S53: Medium Commercial | T53: 0 | U53: 0
C54: Rate 6 | D54: Tier 3 | G54: Large Commercial | H54: 0 | I54: 18176.95539 | S54: Large Commercial | T54: 0 | U54: 44542
H56: TOTAL VOL | T56: TOTAL VOL
F57: RATE 1 | G57: Existing Residential | H57: =SUM(H33,H41,H49) -> 173219.0409 | I57: =SUM(I33,I41,I49) -> 1994009.994 | R57: RATE 1 | S57: Existing Residential | T57: 2849.886628 | U57: 776191.2286
G58: New Residential | H58: =SUM(H34,H42,H50) -> 13213.13143 | I58: 152102.8865 | S58: New Residential | T58: 224.213372 | U58: 60103.87145
G59: Small Commercial | H59: 2346.5 | I59: 44583.5 | S59: Small Commercial | T59: 0 | U59: 31267.8
G60: Small Agricultural | H60: 0 | I60: 0 | S60: Small Agricultural | T60: 0 | U60: 0
F61: RATE 6 | G61: Medium Commercial | H61: 0 | I61: 67332.5 | R61: RATE 6 | S61: Medium Commercial | T61: 0 | U61: 8199
G62: Large Commercial | H62: 0 | I62: 75685 | S62: Large Commercial | T62: 0 | U62: 110630.7
R64: Check | T64: =ABS(SUM(T57:T58)-SUM(#REF!)) ->  | U64: =ABS(SUM(U57:U58)-SUM(#REF!)) -> 

Sheet Input
A1: =MID(CELL("filename",A1),FIND("]",CELL("filename",A1))+1,256) -> Input
C2: Master Check | D2: =Check!E18 -> 3.856257536e-10
I3: 2019 | J3: 2020 | K3: 2021
C5: General
C7: OEB Prescribed Rate | D7: % | I7: =AVERAGE(0.0245,0.0218,0.0218,0.0218) -> 0.022475 | J7: =AVERAGE(0.0218,0.0218,0.0057,0.0057) -> 0.01375 | K7: =AVERAGE(0.0057,0.0057,0.0057,0.0057) -> 0.0057
C9: List
C11: Rate Class
C13: Rate 1
C14: Rate 6
C16: Tier
C18: Tier 1
C19: Tier 2
C20: Tier 3
C22: Customer Type
E24: Rate Class
C25: Existing Residential | E25: Rate 1
C26: New Residential | E26: Rate 1
C27: Small Commercial | E27: Rate 1
C28: Small Agricultural | E28: Rate 1
C29: Medium Commercial | E29: Rate 6
C30: Large Commercial | E30: Rate 6
C36: Volume with CIP Assumptions
E38: Rate Class | F38: Tier
C39: Rate 1 - General Firm Service
C40: Tier 1 | D40: m3 | E40: Rate 1 | F40: Tier 1 | H40: =SUM(I40:K40) -> 1101914.233 | I40: 0 | J40: =SUMIFS(VolumeData!H$18:H$62,VolumeData!$C$18:$C$62,$E40,VolumeData!$D$18:$D$62,$F40) -> 87713.58208 | K40: =SUMIFS(VolumeData!I$18:I$62,VolumeData!$C$18:$C$62,$E40,VolumeData!$D$18:$D$62,$F40) -> 1014200.651
C41: Tier 2 | D41: m3 | E41: Rate 1 | F41: Tier 2 | H41: =SUM(I41:K41) -> 1271362.571 | I41: 0 | J41: =SUMIFS(VolumeData!H$18:H$62,VolumeData!$C$18:$C$62,$E41,VolumeData!$D$18:$D$62,$F41) -> 100755.1778 | K41: =SUMIFS(VolumeData!I$18:I$62,VolumeData!$C$18:$C$62,$E41,VolumeData!$D$18:$D$62,$F41) -> 1170607.393
C42: Tier 3 | D42: m3 | E42: Rate 1 | F42: Tier 3 | H42: =SUM(I42:K42) -> 6198.249204 | I42: 0 | J42: =SUMIFS(VolumeData!H$18:H$62,VolumeData!$C$18:$C$62,$E42,VolumeData!$D$18:$D$62,$F42) -> 309.9124602 | K42: =SUMIFS(VolumeData!I$18:I$62,VolumeData!$C$18:$C$62,$E42,VolumeData!$D$18:$D$62,$F42) -> 5888.336744
C43: Upstream Recover Charge | D43: m3 | H43: =SUM(I43:K43) -> 2379475.053 | I43: =SUM(I40:I42) -> 0 | J43: 188778.6724 | K43: 2190696.381
C44: Delay Rate Rider | D44: m3 | H44: =SUM(I44:K44) -> 2379475.053 | I44: =I43 -> 0 | J44: 188778.6724 | K44: 2190696.381
C46: Rate 6 - Large Volume General Firm Service
C47: Tier 1 | D47: m3 | E47: Rate 6 | F47: Tier 1 | H47: =SUM(I47:K47) -> 36294.18453 | I47: 0 | J47: =SUMIFS(VolumeData!H$18:H$62,VolumeData!$C$18:$C$62,$E47,VolumeData!$D$18:$D$62,$F47) -> 0 | K47: =SUMIFS(VolumeData!I$18:I$62,VolumeData!$C$18:$C$62,$E47,VolumeData!$D$18:$D$62,$F47) -> 36294.18453
C48: Tier 2 | D48: m3 | E48: Rate 6 | F48: Tier 2 | H48: =SUM(I48:K48) -> 88546.36007 | I48: 0 | J48: =SUMIFS(VolumeData!H$18:H$62,VolumeData!$C$18:$C$62,$E48,VolumeData!$D$18:$D$62,$F48) -> 0 | K48: =SUMIFS(VolumeData!I$18:I$62,VolumeData!$C$18:$C$62,$E48,VolumeData!$D$18:$D$62,$F48) -> 88546.36007
C49: Tier 3 | D49: m3 | E49: Rate 6 | F49: Tier 3 | H49: =SUM(I49:K49) -> 18176.95539 | I49: 0 | J49: =SUMIFS(VolumeData!H$18:H$62,VolumeData!$C$18:$C$62,$E49,VolumeData!$D$18:$D$62,$F49) -> 0 | K49: =SUMIFS(VolumeData!I$18:I$62,VolumeData!$C$18:$C$62,$E49,VolumeData!$D$18:$D$62,$F49) -> 18176.95539
C50: Upstream Recover Charge | D50: m3 | H50: =SUM(I50:K50) -> 143017.5 | I50: =SUM(I47:I49) -> 0 | J50: =SUM(J47:J49) -> 0 | K50: =SUM(K47:K49) -> 143017.5
C51: Delay Rate Rider | D51: m3 | H51: =SUM(I51:K51) -> 143017.5 | I51: =I50 -> 0 | J51: =J50 -> 0 | K51: =K50 -> 143017.5
C53: Volume with Actual Experience
C55: Rate 1 - General Firm Service
C56: Tier 1 | D56: m3 | E56: Rate 1 | F56: Tier 1 | H56: =SUM(I56:K56) -> 558617.8 | I56: 0 | J56: =SUMIFS(VolumeData!T$18:T$62,VolumeData!$C$18:$C$62,$E56,VolumeData!$D$18:$D$62,$F56) -> 2716.9 | K56: =SUMIFS(VolumeData!U$18:U$62,VolumeData!$C$18:$C$62,$E56,VolumeData!$D$18:$D$62,$F56) -> 555900.9
C57: Tier 2 | D57: m3 | E57: Rate 1 | F57: Tier 2 | H57: =SUM(I57:K57) -> 291323.6 | I57: 0 | J57: =SUMIFS(VolumeData!T$18:T$62,VolumeData!$C$18:$C$62,$E57,VolumeData!$D$18:$D$62,$F57) -> 357.2 | K57: =SUMIFS(VolumeData!U$18:U$62,VolumeData!$C$18:$C$62,$E57,VolumeData!$D$18:$D$62,$F57) -> 290966.4
C58: Tier 3 | D58: m3 | E58: Rate 1 | F58: Tier 3 | H58: =SUM(I58:K58) -> 20695.6 | I58: 0 | J58: =SUMIFS(VolumeData!T$18:T$62,VolumeData!$C$18:$C$62,$E58,VolumeData!$D$18:$D$62,$F58) -> 0 | K58: =SUMIFS(VolumeData!U$18:U$62,VolumeData!$C$18:$C$62,$E58,VolumeData!$D$18:$D$62,$F58) -> 20695.6
C60: Delay Rate Rider | D60: m3 | H60: =SUM(I60:K60) -> 870637 | I60: =I59 -> 0 | J60: =SUM(J56:J59) -> 3074.1 | K60: =SUM(K56:K59) -> 867562.9
C62: Rate 6 - Large Volume General Firm Service
C63: Tier 1 | D63: m3 | E63: Rate 6 | F63: Tier 1 | H63: =SUM(I63:K63) -> 15510 | I63: 0 | J63: =SUMIFS(VolumeData!T$18:T$62,VolumeData!$C$18:$C$62,$E63,VolumeData!$D$18:$D$62,$F63) -> 0 | K63: =SUMIFS(VolumeData!U$18:U$62,VolumeData!$C$18:$C$62,$E63,VolumeData!$D$18:$D$62,$F63) -> 15510
C64: Tier 2 | D64: m3 | E64: Rate 6 | F64: Tier 2 | H64: =SUM(I64:K64) -> 58777.7 | I64: 0 | J64: =SUMIFS(VolumeData!T$18:T$62,VolumeData!$C$18:$C$62,$E64,VolumeData!$D$18:$D$62,$F64) -> 0 | K64: =SUMIFS(VolumeData!U$18:U$62,VolumeData!$C$18:$C$62,$E64,VolumeData!$D$18:$D$62,$F64) -> 58777.7
C65: Tier 3 | D65: m3 | E65: Rate 6 | F65: Tier 3 | H65: =SUM(I65:K65) -> 44542 | I65: 0 | J65: =SUMIFS(VolumeData!T$18:T$62,VolumeData!$C$18:$C$62,$E65,VolumeData!$D$18:$D$62,$F65) -> 0 | K65: =SUMIFS(VolumeData!U$18:U$62,VolumeData!$C$18:$C$62,$E65,VolumeData!$D$18:$D$62,$F65) -> 44542
C67: Delay Rate Rider | D67: m3 | H67: =SUM(I67:K67) -> 118829.7 | I67: =I66 -> 0 | J67: =SUM(J63:J66) -> 0 | K67: =SUM(K63:K66) -> 118829.7
C69: Revenue Rates
E71: Rate Class | F71: Tier
C73: Rate 1
C75: Tier 1 Volumetric Rate | D75: cents/ m3 | E75: Rate 1 | F75: Tier 1 | I75: 26.7948 | J75: =I75*1.015 -> 27.196722 | K75: 27.621
C76: Tier 2 Volumetric Rate | D76: cents/ m3 | E76: Rate 1 | F76: Tier 2 | I76: 26.267 | J76: =I76*1.015 -> 26.661005 | K76: 27.0769
C77: Tier 3 Volumetric Rate | D77: cents/ m3 | E77: Rate 1 | F77: Tier 3 | I77: 25.4911 | J77: 25.8734665 | K77: 26.2771
C78: Upstream Recover Charge | D78: cents/ m3
C79: Delay Rate Rider | D79: cents/ m3 | I79: 1.633 | J79: 1.633 | K79: 1.633
C81: Rate 6
C83: Tier 1 Volumetric Rate | D83: cents/ m3 | E83: Rate 6 | F83: Tier 1 | I83: 24.7189 | J83: 25.0897 | K83: 25.4811
C84: Tier 2 Volumetric Rate | D84: cents/ m3 | E84: Rate 6 | F84: Tier 2 | I84: 22.247 | J84: 22.5807 | K84: 22.933
C85: Tier 3 Volumetric Rate | D85: cents/ m3 | E85: Rate 6 | F85: Tier 3 | I85: 21.1346 | J85: 21.4516 | K85: 21.7862
C86: Upstream Recover Charge | D86: cents/ m3
C87: Delay Rate Rider | D87: cents/ m3 | I87: 0.909 | J87: 0.909 | K87: 0.909
C89: Check | J89: =ABS(J43+J50-SUM(VolumeData!H57:H62)) -> 2.910383046e-11 | K89: =ABS(K43+K50-SUM(VolumeData!I57:I62)) -> 0

Sheet Calculation
A1: =MID(CELL("filename",A1),FIND("]",CELL("filename",A1))+1,256) -> Calculation
C2: Master Check | D2: =Check!E18 -> 3.856257536e-10
I3: =Input!I3 -> 2019 | J3: =Input!J3 -> 2020 | K3: =Input!K3 -> 2021
C5: Connection Growth
C6: Connection Growth
C8: Shared Between CIP and Actual / Forecast
C10: Revenue Rates by Customer Type by Tiers
C12: Tier 1
E13: Rate Class | F13: Tier
C14: Existing Residential | D14: cents/ m3 | E14: =INDEX(Input!$E$25:$E$30,MATCH($C14,Input!$C$25:$C$30,0)) -> Rate 1 | F14: =C12 -> Tier 1 | J14: =SUMIFS(Input!J$75:J$87,Input!$E$75:$E$87,$E14,Input!$F$75:$F$87,$F14) -> 27.196722 | K14: =SUMIFS(Input!K$75:K$87,Input!$E$75:$E$87,$E14,Input!$F$75:$F$87,$F14) -> 27.621
C15: New Residential | D15: cents/ m3 | E15: =INDEX(Input!$E$25:$E$30,MATCH($C15,Input!$C$25:$C$30,0)) -> Rate 1 | F15: =C12 -> Tier 1 | J15: =SUMIFS(Input!J$75:J$87,Input!$E$75:$E$87,$E15,Input!$F$75:$F$87,$F15) -> 27.196722 | K15: =SUMIFS(Input!K$75:K$87,Input!$E$75:$E$87,$E15,Input!$F$75:$F$87,$F15) -> 27.621
C16: Small Commercial | D16: cents/ m3 | E16: =INDEX(Input!$E$25:$E$30,MATCH($C16,Input!$C$25:$C$30,0)) -> Rate 1 | F16: =C12 -> Tier 1 | J16: =SUMIFS(Input!J$75:J$87,Input!$E$75:$E$87,$E16,Input!$F$75:$F$87,$F16) -> 27.196722 | K16: =SUMIFS(Input!K$75:K$87,Input!$E$75:$E$87,$E16,Input!$F$75:$F$87,$F16) -> 27.621
C17: Small Agricultural | D17: cents/ m3 | E17: =INDEX(Input!$E$25:$E$30,MATCH($C17,Input!$C$25:$C$30,0)) -> Rate 1 | F17: =C12 -> Tier 1 | J17: =SUMIFS(Input!J$75:J$87,Input!$E$75:$E$87,$E17,Input!$F$75:$F$87,$F17) -> 27.196722 | K17: =SUMIFS(Input!K$75:K$87,Input!$E$75:$E$87,$E17,Input!$F$75:$F$87,$F17) -> 27.621
C20: Medium Commercial | D20: cents/ m3 | E20: =INDEX(Input!$E$25:$E$30,MATCH($C20,Input!$C$25:$C$30,0)) -> Rate 6 | F20: =C12 -> Tier 1 | J20: =SUMIFS(Input!J$75:J$87,Input!$E$75:$E$87,$E20,Input!$F$75:$F$87,$F20) -> 25.0897 | K20: =SUMIFS(Input!K$75:K$87,Input!$E$75:$E$87,$E20,Input!$F$75:$F$87,$F20) -> 25.4811
C21: Large Commercial | D21: cents/ m3 | E21: =INDEX(Input!$E$25:$E$30,MATCH($C21,Input!$C$25:$C$30,0)) -> Rate 6 | F21: =C12 -> Tier 1 | J21: =SUMIFS(Input!J$75:J$87,Input!$E$75:$E$87,$E21,Input!$F$75:$F$87,$F21) -> 25.0897 | K21: =SUMIFS(Input!K$75:K$87,Input!$E$75:$E$87,$E21,Input!$F$75:$F$87,$F21) -> 25.4811
C24: Tier 2
E25: Rate Class | F25: Tier
C26: Existing Residential | D26: cents/ m3 | E26: =INDEX(Input!$E$25:$E$30,MATCH($C26,Input!$C$25:$C$30,0)) -> Rate 1 | F26: =C24 -> Tier 2 | J26: =SUMIFS(Input!J$75:J$87,Input!$E$75:$E$87,$E26,Input!$F$75:$F$87,$F26) -> 26.661005 | K26: =SUMIFS(Input!K$75:K$87,Input!$E$75:$E$87,$E26,Input!$F$75:$F$87,$F26) -> 27.0769
C27: New Residential | D27: cents/ m3 | E27: =INDEX(Input!$E$25:$E$30,MATCH($C27,Input!$C$25:$C$30,0)) -> Rate 1 | F27: =C24 -> Tier 2 | J27: =SUMIFS(Input!J$75:J$87,Input!$E$75:$E$87,$E27,Input!$F$75:$F$87,$F27) -> 26.661005 | K27: =SUMIFS(Input!K$75:K$87,Input!$E$75:$E$87,$E27,Input!$F$75:$F$87,$F27) -> 27.0769
C28: Small Commercial | D28: cents/ m3 | E28: =INDEX(Input!$E$25:$E$30,MATCH($C28,Input!$C$25:$C$30,0)) -> Rate 1 | F28: =C24 -> Tier 2 | J28: =SUMIFS(Input!J$75:J$87,Input!$E$75:$E$87,$E28,Input!$F$75:$F$87,$F28) -> 26.661005 | K28: =SUMIFS(Input!K$75:K$87,Input!$E$75:$E$87,$E28,Input!$F$75:$F$87,$F28) -> 27.0769
C29: Small Agricultural | D29: cents/ m3 | E29: =INDEX(Input!$E$25:$E$30,MATCH($C29,Input!$C$25:$C$30,0)) -> Rate 1 | F29: =C24 -> Tier 2 | J29: =SUMIFS(Input!J$75:J$87,Input!$E$75:$E$87,$E29,Input!$F$75:$F$87,$F29) -> 26.661005 | K29: =SUMIFS(Input!K$75:K$87,Input!$E$75:$E$87,$E29,Input!$F$75:$F$87,$F29) -> 27.0769
C32: Medium Commercial | D32: cents/ m3 | E32: =INDEX(Input!$E$25:$E$30,MATCH($C32,Input!$C$25:$C$30,0)) -> Rate 6 | F32: =C24 -> Tier 2 | J32: =SUMIFS(Input!J$75:J$87,Input!$E$75:$E$87,$E32,Input!$F$75:$F$87,$F32) -> 22.5807 | K32: =SUMIFS(Input!K$75:K$87,Input!$E$75:$E$87,$E32,Input!$F$75:$F$87,$F32) -> 22.933
C33: Large Commercial | D33: cents/ m3 | E33: =INDEX(Input!$E$25:$E$30,MATCH($C33,Input!$C$25:$C$30,0)) -> Rate 6 | F33: =C24 -> Tier 2 | J33: =SUMIFS(Input!J$75:J$87,Input!$E$75:$E$87,$E33,Input!$F$75:$F$87,$F33) -> 22.5807 | K33: =SUMIFS(Input!K$75:K$87,Input!$E$75:$E$87,$E33,Input!$F$75:$F$87,$F33) -> 22.933
C36: Tier 3
E37: Rate Class | F37: Tier
C38: Existing Residential | D38: cents/ m3 | E38: =INDEX(Input!$E$25:$E$30,MATCH($C38,Input!$C$25:$C$30,0)) -> Rate 1 | F38: =C36 -> Tier 3 | J38: =SUMIFS(Input!J$75:J$87,Input!$E$75:$E$87,$E38,Input!$F$75:$F$87,$F38) -> 25.8734665 | K38: =SUMIFS(Input!K$75:K$87,Input!$E$75:$E$87,$E38,Input!$F$75:$F$87,$F38) -> 26.2771
C39: New Residential | D39: cents/ m3 | E39: =INDEX(Input!$E$25:$E$30,MATCH($C39,Input!$C$25:$C$30,0)) -> Rate 1 | F39: =C36 -> Tier 3 | J39: =SUMIFS(Input!J$75:J$87,Input!$E$75:$E$87,$E39,Input!$F$75:$F$87,$F39) -> 25.8734665 | K39: =SUMIFS(Input!K$75:K$87,Input!$E$75:$E$87,$E39,Input!$F$75:$F$87,$F39) -> 26.2771
C40: Small Commercial | D40: cents/ m3 | E40: =INDEX(Input!$E$25:$E$30,MATCH($C40,Input!$C$25:$C$30,0)) -> Rate 1 | F40: =C36 -> Tier 3 | J40: =SUMIFS(Input!J$75:J$87,Input!$E$75:$E$87,$E40,Input!$F$75:$F$87,$F40) -> 25.8734665 | K40: =SUMIFS(Input!K$75:K$87,Input!$E$75:$E$87,$E40,Input!$F$75:$F$87,$F40) -> 26.2771
C41: Small Agricultural | D41: cents/ m3 | E41: =INDEX(Input!$E$25:$E$30,MATCH($C41,Input!$C$25:$C$30,0)) -> Rate 1 | F41: =C36 -> Tier 3 | J41: =SUMIFS(Input!J$75:J$87,Input!$E$75:$E$87,$E41,Input!$F$75:$F$87,$F41) -> 25.8734665 | K41: =SUMIFS(Input!K$75:K$87,Input!$E$75:$E$87,$E41,Input!$F$75:$F$87,$F41) -> 26.2771
C44: Medium Commercial | D44: cents/ m3 | E44: =INDEX(Input!$E$25:$E$30,MATCH($C44,Input!$C$25:$C$30,0)) -> Rate 6 | F44: =C36 -> Tier 3 | J44: =SUMIFS(Input!J$75:J$87,Input!$E$75:$E$87,$E44,Input!$F$75:$F$87,$F44) -> 21.4516 | K44: =SUMIFS(Input!K$75:K$87,Input!$E$75:$E$87,$E44,Input!$F$75:$F$87,$F44) -> 21.7862
C45: Large Commercial | D45: cents/ m3 | E45: =INDEX(Input!$E$25:$E$30,MATCH($C45,Input!$C$25:$C$30,0)) -> Rate 6 | F45: =C36 -> Tier 3 | J45: =SUMIFS(Input!J$75:J$87,Input!$E$75:$E$87,$E45,Input!$F$75:$F$87,$F45) -> 21.4516 | K45: =SUMIFS(Input!K$75:K$87,Input!$E$75:$E$87,$E45,Input!$F$75:$F$87,$F45) -> 21.7862
C48: Upstream Recover Charge
E49: Rate Class
C50: Existing Residential | D50: cents/ m3 | E50: =INDEX(Input!$E$25:$E$30,MATCH($C50,Input!$C$25:$C$30,0)) -> Rate 1
C51: New Residential | D51: cents/ m3 | E51: =INDEX(Input!$E$25:$E$30,MATCH($C51,Input!$C$25:$C$30,0)) -> Rate 1
C52: Small Commercial | D52: cents/ m3 | E52: =INDEX(Input!$E$25:$E$30,MATCH($C52,Input!$C$25:$C$30,0)) -> Rate 1
C53: Small Agricultural | D53: cents/ m3 | E53: =INDEX(Input!$E$25:$E$30,MATCH($C53,Input!$C$25:$C$30,0)) -> Rate 1
C56: Medium Commercial | D56: cents/ m3 | E56: =INDEX(Input!$E$25:$E$30,MATCH($C56,Input!$C$25:$C$30,0)) -> Rate 6
C57: Large Commercial | D57: cents/ m3 | E57: =INDEX(Input!$E$25:$E$30,MATCH($C57,Input!$C$25:$C$30,0)) -> Rate 6
C60: Delay Rate Rider
E61: Rate Class
C62: Existing Residential | D62: cents/ m3 | E62: =INDEX(Input!$E$25:$E$30,MATCH($C62,Input!$C$25:$C$30,0)) -> Rate 1 | J62: =Input!J$79 -> 1.633 | K62: =Input!K$79 -> 1.633
C63: New Residential | D63: cents/ m3 | E63: =INDEX(Input!$E$25:$E$30,MATCH($C63,Input!$C$25:$C$30,0)) -> Rate 1 | J63: =Input!J$79 -> 1.633 | K63: =Input!K$79 -> 1.633
C64: Small Commercial | D64: cents/ m3 | E64: =INDEX(Input!$E$25:$E$30,MATCH($C64,Input!$C$25:$C$30,0)) -> Rate 1 | J64: =Input!J$79 -> 1.633 | K64: =Input!K$79 -> 1.633
C65: Small Agricultural | D65: cents/ m3 | E65: =INDEX(Input!$E$25:$E$30,MATCH($C65,Input!$C$25:$C$30,0)) -> Rate 1 | J65: =Input!J$79 -> 1.633 | K65: =Input!K$79 -> 1.633
C68: Medium Commercial | D68: cents/ m3 | E68: =INDEX(Input!$E$25:$E$30,MATCH($C68,Input!$C$25:$C$30,0)) -> Rate 6 | J68: =Input!J$87 -> 0.909 | K68: =Input!K$87 -> 0.909
C69: Large Commercial | D69: cents/ m3 | E69: =INDEX(Input!$E$25:$E$30,MATCH($C69,Input!$C$25:$C$30,0)) -> Rate 6 | J69: =Input!J$87 -> 0.909 | K69: =Input!K$87 -> 0.909
C73: CIP
C75: Volume by Customer Type by Tiers
C77: Tier 1
E78: Rate Class | F78: Tier | G78: Customer Type
C79: Existing Residential | D79: m3 | E79: =INDEX(Input!$E$25:$E$30,MATCH($C79,Input!$C$25:$C$30,0)) -> Rate 1 | F79: =C77 -> Tier 1 | G79: =C79 -> Existing Residential | J79: =SUMIFS(VolumeData!H$33:H$54,VolumeData!$C$33:$C$54,$E79,VolumeData!$D$33:$D$54,$F79,VolumeData!$G$33:$G$54,$G79) -> 80710.566 | K79: =SUMIFS(VolumeData!I$33:I$54,VolumeData!$C$33:$C$54,$E79,VolumeData!$D$33:$D$54,$F79,VolumeData!$G$33:$G$54,$G79) -> 929099.2166
C80: New Residential | D80: m3 | E80: =INDEX(Input!$E$25:$E$30,MATCH($C80,Input!$C$25:$C$30,0)) -> Rate 1 | F80: =C77 -> Tier 1 | G80: =C80 -> New Residential | J80: =SUMIFS(VolumeData!H$33:H$54,VolumeData!$C$33:$C$54,$E80,VolumeData!$D$33:$D$54,$F80,VolumeData!$G$33:$G$54,$G80) -> 6403.930593 | K80: =SUMIFS(VolumeData!I$33:I$54,VolumeData!$C$33:$C$54,$E80,VolumeData!$D$33:$D$54,$F80,VolumeData!$G$33:$G$54,$G80) -> 73718.81022
C81: Small Commercial | D81: m3 | E81: =INDEX(Input!$E$25:$E$30,MATCH($C81,Input!$C$25:$C$30,0)) -> Rate 1 | F81: =C77 -> Tier 1 | G81: Small Commercial | J81: =SUMIFS(VolumeData!H$33:H$54,VolumeData!$C$33:$C$54,$E81,VolumeData!$D$33:$D$54,$F81,VolumeData!$G$33:$G$54,$G81) -> 599.0854934 | K81: =SUMIFS(VolumeData!I$33:I$54,VolumeData!$C$33:$C$54,$E81,VolumeData!$D$33:$D$54,$F81,VolumeData!$G$33:$G$54,$G81) -> 11382.62437
C82: Small Agricultural | D82: m3 | E82: =INDEX(Input!$E$25:$E$30,MATCH($C82,Input!$C$25:$C$30,0)) -> Rate 1 | F82: =C77 -> Tier 1 | G82: Small Agricultural | J82: =SUMIFS(VolumeData!H$33:H$54,VolumeData!$C$33:$C$54,$E82,VolumeData!$D$33:$D$54,$F82,VolumeData!$G$33:$G$54,$G82) -> 0 | K82: =SUMIFS(VolumeData!I$33:I$54,VolumeData!$C$33:$C$54,$E82,VolumeData!$D$33:$D$54,$F82,VolumeData!$G$33:$G$54,$G82) -> 0
C83: Rate 1 | D83: m3 | J83: =SUM(J79:J82) -> 87713.58208 | K83: =SUM(K79:K82) -> 1014200.651
C85: Medium Commercial | D85: m3 | E85: =INDEX(Input!$E$25:$E$30,MATCH($C85,Input!$C$25:$C$30,0)) -> Rate 6 | F85: =C77 -> Tier 1 | G85: =C85 -> Medium Commercial | J85: =SUMIFS(VolumeData!H$33:H$54,VolumeData!$C$33:$C$54,$E85,VolumeData!$D$33:$D$54,$F85,VolumeData!$G$33:$G$54,$G85) -> 0 | K85: =SUMIFS(VolumeData!I$33:I$54,VolumeData!$C$33:$C$54,$E85,VolumeData!$D$33:$D$54,$F85,VolumeData!$G$33:$G$54,$G85) -> 24578.85834
C86: Large Commercial | D86: m3 | E86: =INDEX(Input!$E$25:$E$30,MATCH($C86,Input!$C$25:$C$30,0)) -> Rate 6 | F86: =C77 -> Tier 1 | G86: =C86 -> Large Commercial | J86: =SUMIFS(VolumeData!H$33:H$54,VolumeData!$C$33:$C$54,$E86,VolumeData!$D$33:$D$54,$F86,VolumeData!$G$33:$G$54,$G86) -> 0 | K86: =SUMIFS(VolumeData!I$33:I$54,VolumeData!$C$33:$C$54,$E86,VolumeData!$D$33:$D$54,$F86,VolumeData!$G$33:$G$54,$G86) -> 11715.32619
C87: Rate 6 | D87: m3 | J87: =SUM(J85:J86) -> 0 | K87: =SUM(K85:K86) -> 36294.18453
C89: Tier 2
E90: Rate Class | F90: Tier | G90: Customer Type
C91: Existing Residential | D91: m3 | E91: =INDEX(Input!$E$25:$E$30,MATCH($C91,Input!$C$25:$C$30,0)) -> Rate 1 | F91: =C89 -> Tier 2 | G91: =C91 -> Existing Residential | J91: =SUMIFS(VolumeData!H$33:H$54,VolumeData!$C$33:$C$54,$E91,VolumeData!$D$33:$D$54,$F91,VolumeData!$G$33:$G$54,$G91) -> 92508.47493 | K91: =SUMIFS(VolumeData!I$33:I$54,VolumeData!$C$33:$C$54,$E91,VolumeData!$D$33:$D$54,$F91,VolumeData!$G$33:$G$54,$G91) -> 1064910.778
C92: New Residential | D92: m3 | E92: =INDEX(Input!$E$25:$E$30,MATCH($C92,Input!$C$25:$C$30,0)) -> Rate 1 | F92: =C89 -> Tier 2 | G92: =C92 -> New Residential | J92: =SUMIFS(VolumeData!H$33:H$54,VolumeData!$C$33:$C$54,$E92,VolumeData!$D$33:$D$54,$F92,VolumeData!$G$33:$G$54,$G92) -> 6809.200834 | K92: =SUMIFS(VolumeData!I$33:I$54,VolumeData!$C$33:$C$54,$E92,VolumeData!$D$33:$D$54,$F92,VolumeData!$G$33:$G$54,$G92) -> 78384.07627
C93: Small Commercial | D93: m3 | E93: =INDEX(Input!$E$25:$E$30,MATCH($C93,Input!$C$25:$C$30,0)) -> Rate 1 | F93: =C89 -> Tier 2 | G93: Small Commercial | J93: =SUMIFS(VolumeData!H$33:H$54,VolumeData!$C$33:$C$54,$E93,VolumeData!$D$33:$D$54,$F93,VolumeData!$G$33:$G$54,$G93) -> 1437.502046 | K93: =SUMIFS(VolumeData!I$33:I$54,VolumeData!$C$33:$C$54,$E93,VolumeData!$D$33:$D$54,$F93,VolumeData!$G$33:$G$54,$G93) -> 27312.53888
C94: Small Agricultural | D94: m3 | E94: =INDEX(Input!$E$25:$E$30,MATCH($C94,Input!$C$25:$C$30,0)) -> Rate 1 | F94: =C89 -> Tier 2 | G94: Small Agricultural | J94: =SUMIFS(VolumeData!H$33:H$54,VolumeData!$C$33:$C$54,$E94,VolumeData!$D$33:$D$54,$F94,VolumeData!$G$33:$G$54,$G94) -> 0 | K94: =SUMIFS(VolumeData!I$33:I$54,VolumeData!$C$33:$C$54,$E94,VolumeData!$D$33:$D$54,$F94,VolumeData!$G$33:$G$54,$G94) -> 0
C95: Rate 1 | D95: m3 | J95: =SUM(J91:J94) -> 100755.1778 | K95: =SUM(K91:K94) -> 1170607.393
C97: Medium Commercial | D97: m3 | E97: =INDEX(Input!$E$25:$E$30,MATCH($C97,Input!$C$25:$C$30,0)) -> Rate 6 | F97: =C89 -> Tier 2 | G97: =C97 -> Medium Commercial | J97: =SUMIFS(VolumeData!H$33:H$54,VolumeData!$C$33:$C$54,$E97,VolumeData!$D$33:$D$54,$F97,VolumeData!$G$33:$G$54,$G97) -> 0 | K97: =SUMIFS(VolumeData!I$33:I$54,VolumeData!$C$33:$C$54,$E97,VolumeData!$D$33:$D$54,$F97,VolumeData!$G$33:$G$54,$G97) -> 42753.64166
C98: Large Commercial | D98: m3 | E98: =INDEX(Input!$E$25:$E$30,MATCH($C98,Input!$C$25:$C$30,0)) -> Rate 6 | F98: =C89 -> Tier 2 | G98: Large Commercial | J98: =SUMIFS(VolumeData!H$33:H$54,VolumeData!$C$33:$C$54,$E98,VolumeData!$D$33:$D$54,$F98,VolumeData!$G$33:$G$54,$G98) -> 0 | K98: =SUMIFS(VolumeData!I$33:I$54,VolumeData!$C$33:$C$54,$E98,VolumeData!$D$33:$D$54,$F98,VolumeData!$G$33:$G$54,$G98) -> 45792.71842
C99: Rate 6 | D99: m3 | J99: =SUM(J97:J98) -> 0 | K99: =SUM(K97:K98) -> 88546.36007
C101: Tier 3
E102: Rate Class | F102: Tier | G102: Customer Type
C103: Existing Residential | D103: m3 | E103: =INDEX(Input!$E$25:$E$30,MATCH($C103,Input!$C$25:$C$30,0)) -> Rate 1 | F103: =C101 -> Tier 3 | G103: =C103 -> Existing Residential | J103: =SUMIFS(VolumeData!H$33:H$54,VolumeData!$C$33:$C$54,$E103,VolumeData!$D$33:$D$54,$F103,VolumeData!$G$33:$G$54,$G103) -> 0 | K103: =SUMIFS(VolumeData!I$33:I$54,VolumeData!$C$33:$C$54,$E103,VolumeData!$D$33:$D$54,$F103,VolumeData!$G$33:$G$54,$G103) -> 0
C104: New Residential | D104: m3 | E104: =INDEX(Input!$E$25:$E$30,MATCH($C104,Input!$C$25:$C$30,0)) -> Rate 1 | F104: =C101 -> Tier 3 | G104: =C104 -> New Residential | J104: =SUMIFS(VolumeData!H$33:H$54,VolumeData!$C$33:$C$54,$E104,VolumeData!$D$33:$D$54,$F104,VolumeData!$G$33:$G$54,$G104) -> 0 | K104: =SUMIFS(VolumeData!I$33:I$54,VolumeData!$C$33:$C$54,$E104,VolumeData!$D$33:$D$54,$F104,VolumeData!$G$33:$G$54,$G104) -> 0
C105: Small Commercial | D105: m3 | E105: =INDEX(Input!$E$25:$E$30,MATCH($C105,Input!$C$25:$C$30,0)) -> Rate 1 | F105: =C101 -> Tier 3 | G105: Small Commercial | J105: =SUMIFS(VolumeData!H$33:H$54,VolumeData!$C$33:$C$54,$E105,VolumeData!$D$33:$D$54,$F105,VolumeData!$G$33:$G$54,$G105) -> 309.9124602 | K105: =SUMIFS(VolumeData!I$33:I$54,VolumeData!$C$33:$C$54,$E105,VolumeData!$D$33:$D$54,$F105,VolumeData!$G$33:$G$54,$G105) -> 5888.336744
C106: Small Agricultural | D106: m3 | E106: =INDEX(Input!$E$25:$E$30,MATCH($C106,Input!$C$25:$C$30,0)) -> Rate 1 | F106: =C101 -> Tier 3 | G106: Small Agricultural | J106: =SUMIFS(VolumeData!H$33:H$54,VolumeData!$C$33:$C$54,$E106,VolumeData!$D$33:$D$54,$F106,VolumeData!$G$33:$G$54,$G106) -> 0 | K106: =SUMIFS(VolumeData!I$33:I$54,VolumeData!$C$33:$C$54,$E106,VolumeData!$D$33:$D$54,$F106,VolumeData!$G$33:$G$54,$G106) -> 0
C107: Rate 1 | D107: m3 | J107: =SUM(J103:J106) -> 309.9124602 | K107: =SUM(K103:K106) -> 5888.336744
C109: Medium Commercial | D109: m3 | E109: =INDEX(Input!$E$25:$E$30,MATCH($C109,Input!$C$25:$C$30,0)) -> Rate 6 | F109: =C101 -> Tier 3 | G109: =C109 -> Medium Commercial | J109: =SUMIFS(VolumeData!H$33:H$54,VolumeData!$C$33:$C$54,$E109,VolumeData!$D$33:$D$54,$F109,VolumeData!$G$33:$G$54,$G109) -> 0 | K109: =SUMIFS(VolumeData!I$33:I$54,VolumeData!$C$33:$C$54,$E109,VolumeData!$D$33:$D$54,$F109,VolumeData!$G$33:$G$54,$G109) -> 0
C110: Large Commercial | D110: m3 | E110: =INDEX(Input!$E$25:$E$30,MATCH($C110,Input!$C$25:$C$30,0)) -> Rate 6 | F110: =C101 -> Tier 3 | G110: Large Commercial | J110: =SUMIFS(VolumeData!H$33:H$54,VolumeData!$C$33:$C$54,$E110,VolumeData!$D$33:$D$54,$F110,VolumeData!$G$33:$G$54,$G110) -> 0 | K110: =SUMIFS(VolumeData!I$33:I$54,VolumeData!$C$33:$C$54,$E110,VolumeData!$D$33:$D$54,$F110,VolumeData!$G$33:$G$54,$G110) -> 18176.95539
C111: Rate 6 | D111: m3 | J111: =SUM(J109:J110) -> 0 | K111: =SUM(K109:K110) -> 18176.95539
C113: Total Volume
E114: Rate Class | G114: Customer Type
C115: Existing Residential | D115: m3 | E115: =INDEX(Input!$E$25:$E$30,MATCH($C115,Input!$C$25:$C$30,0)) -> Rate 1 | G115: =C115 -> Existing Residential | J115: =J79+J91+J103 -> 173219.0409 | K115: =K79+K91+K103 -> 1994009.994
C116: New Residential | D116: m3 | E116: =INDEX(Input!$E$25:$E$30,MATCH($C116,Input!$C$25:$C$30,0)) -> Rate 1 | G116: =C116 -> New Residential | J116: =J80+J92+J104 -> 13213.13143 | K116: 152102.8865
C117: Small Commercial | D117: m3 | E117: =INDEX(Input!$E$25:$E$30,MATCH($C117,Input!$C$25:$C$30,0)) -> Rate 1 | G117: Small Commercial | J117: 2346.5 | K117: 44583.5
C118: Small Agricultural | D118: m3 | E118: =INDEX(Input!$E$25:$E$30,MATCH($C118,Input!$C$25:$C$30,0)) -> Rate 1 | G118: Small Agricultural | J118: 0 | K118: 0
C119: Rate 1 | D119: m3 | J119: =SUM(J115:J118) -> 188778.6724 | K119: =SUM(K115:K118) -> 2190696.381
C121: Medium Commercial | D121: m3 | E121: =INDEX(Input!$E$25:$E$30,MATCH($C121,Input!$C$25:$C$30,0)) -> Rate 6 | G121: =C121 -> Medium Commercial | J121: =J85+J97+J109 -> 0 | K121: =K85+K97+K109 -> 67332.5
C122: Large Commercial | D122: m3 | E122: =INDEX(Input!$E$25:$E$30,MATCH($C122,Input!$C$25:$C$30,0)) -> Rate 6 | G122: Large Commercial | J122: =J86+J98+J110 -> 0 | K122: 75685
C123: Rate 6 | D123: m3 | J123: =SUM(J121:J122) -> 0 | K123: =SUM(K121:K122) -> 143017.5
C125: Revenue by Customer Type by Tiers
C127: Tier 1
E128: Rate Class | F128: Tier | G128: Customer Type
C129: Existing Residential | D129: m3 | E129: =INDEX(Input!$E$25:$E$30,MATCH($C129,Input!$C$25:$C$30,0)) -> Rate 1 | F129: =C127 -> Tier 1 | G129: =C129 -> Existing Residential | J129: =J14*J79/100 -> 21950.62826 | K129: =K14*K79/100 -> 256626.4946
C130: New Residential | D130: m3 | E130: =INDEX(Input!$E$25:$E$30,MATCH($C130,Input!$C$25:$C$30,0)) -> Rate 1 | F130: =C127 -> Tier 1 | G130: =C130 -> New Residential | J130: =J15*J80/100 -> 1741.6592 | K130: 20361.87257
C131: Small Commercial | D131: m3 | E131: =INDEX(Input!$E$25:$E$30,MATCH($C131,Input!$C$25:$C$30,0)) -> Rate 1 | F131: =C127 -> Tier 1 | G131: Small Commercial | J131: =J16*J81/100 -> 162.9316162 | K131: 3143.994679
C132: Small Agricultural | D132: m3 | E132: =INDEX(Input!$E$25:$E$30,MATCH($C132,Input!$C$25:$C$30,0)) -> Rate 1 | F132: =C127 -> Tier 1 | G132: Small Agricultural | J132: =J17*J82/100 -> 0 | K132: 0
C133: Rate 1 | D133: m3 | J133: =SUM(J129:J132) -> 23855.21908 | K133: =SUM(K129:K132) -> 280132.3619
C135: Medium Commercial | D135: m3 | E135: =INDEX(Input!$E$25:$E$30,MATCH($C135,Input!$C$25:$C$30,0)) -> Rate 6 | F135: =C127 -> Tier 1 | G135: =C135 -> Medium Commercial | J135: =J20*J85/100 -> 0 | K135: =K20*K85/100 -> 6262.963474
C136: Large Commercial | D136: m3 | E136: =INDEX(Input!$E$25:$E$30,MATCH($C136,Input!$C$25:$C$30,0)) -> Rate 6 | F136: =C127 -> Tier 1 | G136: Large Commercial | J136: =J21*J86/100 -> 0 | K136: 2985.193981
C137: Rate 6 | D137: m3 | J137: =SUM(J135:J136) -> 0 | K137: =SUM(K135:K136) -> 9248.157455
C139: Tier 2
E140: Rate Class | F140: Tier | G140: Customer Type
C141: Existing Residential | D141: m3 | E141: =INDEX(Input!$E$25:$E$30,MATCH($C141,Input!$C$25:$C$30,0)) -> Rate 1 | F141: =C139 -> Tier 2 | G141: =C141 -> Existing Residential | J141: =J26*J91/100 -> 24663.68913 | K141: =K26*K91/100 -> 288344.8263
C142: New Residential | D142: m3 | E142: =INDEX(Input!$E$25:$E$30,MATCH($C142,Input!$C$25:$C$30,0)) -> Rate 1 | F142: =C139 -> Tier 2 | G142: =C142 -> New Residential | J142: =J27*J92/100 -> 1815.401375 | K142: 21223.97795
C143: Small Commercial | D143: m3 | E143: =INDEX(Input!$E$25:$E$30,MATCH($C143,Input!$C$25:$C$30,0)) -> Rate 1 | F143: =C139 -> Tier 2 | G143: Small Commercial | J143: =J28*J93/100 -> 383.2524925 | K143: 7395.38884
C144: Small Agricultural | D144: m3 | E144: =INDEX(Input!$E$25:$E$30,MATCH($C144,Input!$C$25:$C$30,0)) -> Rate 1 | F144: =C139 -> Tier 2 | G144: Small Agricultural | J144: =J29*J94/100 -> 0 | K144: 0
C145: Rate 1 | D145: m3 | J145: =SUM(J141:J144) -> 26862.343 | K145: =SUM(K141:K144) -> 316964.1931
C147: Medium Commercial | D147: m3 | E147: =INDEX(Input!$E$25:$E$30,MATCH($C147,Input!$C$25:$C$30,0)) -> Rate 6 | F147: =C139 -> Tier 2 | G147: =C147 -> Medium Commercial | J147: =J32*J97/100 -> 0 | K147: =K32*K97/100 -> 9804.692641
C148: Large Commercial | D148: m3 | E148: =INDEX(Input!$E$25:$E$30,MATCH($C148,Input!$C$25:$C$30,0)) -> Rate 6 | F148: =C139 -> Tier 2 | G148: Large Commercial | J148: =J33*J98/100 -> 0 | K148: 10501.64411
C149: Rate 6 | D149: m3 | J149: =SUM(J147:J148) -> 0 | K149: =SUM(K147:K148) -> 20306.33676
C151: Tier 3
E152: Rate Class | F152: Tier | G152: Customer Type
C153: Existing Residential | D153: m3 | E153: =INDEX(Input!$E$25:$E$30,MATCH($C153,Input!$C$25:$C$30,0)) -> Rate 1 | F153: =C151 -> Tier 3 | G153: =C153 -> Existing Residential | J153: =J38*J103/100 -> 0 | K153: =K38*K103/100 -> 0
C154: New Residential | D154: m3 | E154: =INDEX(Input!$E$25:$E$30,MATCH($C154,Input!$C$25:$C$30,0)) -> Rate 1 | F154: =C151 -> Tier 3 | G154: =C154 -> New Residential | J154: =J39*J104/100 -> 0 | K154: 0
C155: Small Commercial | D155: m3 | E155: =INDEX(Input!$E$25:$E$30,MATCH($C155,Input!$C$25:$C$30,0)) -> Rate 1 | F155: =C151 -> Tier 3 | G155: Small Commercial | J155: =J40*J105/100 -> 80.18509657 | K155: 1547.284135
C156: Small Agricultural | D156: m3 | E156: =INDEX(Input!$E$25:$E$30,MATCH($C156,Input!$C$25:$C$30,0)) -> Rate 1 | F156: =C151 -> Tier 3 | G156: Small Agricultural | J156: =J41*J106/100 -> 0 | K156: 0
C157: Rate 1 | D157: m3 | J157: =SUM(J153:J156) -> 80.18509657 | K157: =SUM(K153:K156) -> 1547.284135
C159: Medium Commercial | D159: m3 | E159: =INDEX(Input!$E$25:$E$30,MATCH($C159,Input!$C$25:$C$30,0)) -> Rate 6 | F159: =C151 -> Tier 3 | G159: =C159 -> Medium Commercial | J159: =J44*J109/100 -> 0 | K159: =K44*K109/100 -> 0
C160: Large Commercial | D160: m3 | E160: =INDEX(Input!$E$25:$E$30,MATCH($C160,Input!$C$25:$C$30,0)) -> Rate 6 | F160: =C151 -> Tier 3 | G160: Large Commercial | J160: =J45*J110/100 -> 0 | K160: 3960.067856
C161: Rate 6 | D161: m3 | J161: =SUM(J159:J160) -> 0 | K161: =SUM(K159:K160) -> 3960.067856
C163: Upstream Recover Charge
E164: Rate Class | G164: Customer Type
C165: Existing Residential | D165: m3 | E165: =INDEX(Input!$E$25:$E$30,MATCH($C165,Input!$C$25:$C$30,0)) -> Rate 1 | G165: =C165 -> Existing Residential | J165: =J50*J115/100 -> 0 | K165: =K50*K115/100 -> 0
C166: New Residential | D166: m3 | E166: =INDEX(Input!$E$25:$E$30,MATCH($C166,Input!$C$25:$C$30,0)) -> Rate 1 | G166: =C166 -> New Residential | J166: =J51*J116/100 -> 0 | K166: 0
C167: Small Commercial | D167: m3 | E167: =INDEX(Input!$E$25:$E$30,MATCH($C167,Input!$C$25:$C$30,0)) -> Rate 1 | G167: Small Commercial | J167: =J52*J117/100 -> 0 | K167: 0
C168: Small Agricultural | D168: m3 | E168: =INDEX(Input!$E$25:$E$30,MATCH($C168,Input!$C$25:$C$30,0)) -> Rate 1 | G168: Small Agricultural | J168: =J53*J118/100 -> 0 | K168: 0
C169: Rate 1 | D169: m3 | J169: =SUM(J165:J168) -> 0 | K169: =SUM(K165:K168) -> 0
C171: Medium Commercial | D171: m3 | E171: =INDEX(Input!$E$25:$E$30,MATCH($C171,Input!$C$25:$C$30,0)) -> Rate 6 | G171: =C171 -> Medium Commercial | J171: =J56*J121/100 -> 0 | K171: =K56*K121/100 -> 0
C172: Large Commercial | D172: m3 | E172: =INDEX(Input!$E$25:$E$30,MATCH($C172,Input!$C$25:$C$30,0)) -> Rate 6 | G172: Large Commercial | J172: =J57*J122/100 -> 0 | K172: 0
C173: Rate 6 | D173: m3 | J173: =SUM(J171:J172) -> 0 | K173: =SUM(K171:K172) -> 0
C175: Delay Rate Rider
E176: Rate Class | G176: Customer Type
C177: Existing Residential | D177: m3 | E177: =INDEX(Input!$E$25:$E$30,MATCH($C177,Input!$C$25:$C$30,0)) -> Rate 1 | G177: =C177 -> Existing Residential | J177: =J62*J115/100 -> 2828.666938 | K177: =K62*K115/100 -> 32562.1832
C178: New Residential | D178: m3 | E178: =INDEX(Input!$E$25:$E$30,MATCH($C178,Input!$C$25:$C$30,0)) -> Rate 1 | G178: =C178 -> New Residential | J178: =J63*J116/100 -> 215.7704362 | K178: 2483.840136
C179: Small Commercial | D179: m3 | E179: =INDEX(Input!$E$25:$E$30,MATCH($C179,Input!$C$25:$C$30,0)) -> Rate 1 | G179: Small Commercial | J179: =J64*J117/100 -> 38.318345 | K179: 728.048555
C180: Small Agricultural | D180: m3 | E180: =INDEX(Input!$E$25:$E$30,MATCH($C180,Input!$C$25:$C$30,0)) -> Rate 1 | G180: Small Agricultural | J180: =J65*J118/100 -> 0 | K180: 0
C181: Rate 1 | D181: m3 | J181: =SUM(J177:J180) -> 3082.75572 | K181: =SUM(K177:K180) -> 35774.0719
C183: Medium Commercial | D183: m3 | E183: =INDEX(Input!$E$25:$E$30,MATCH($C183,Input!$C$25:$C$30,0)) -> Rate 6 | G183: =C183 -> Medium Commercial | J183: =J68*J121/100 -> 0 | K183: =K68*K121/100 -> 612.052425
C184: Large Commercial | D184: m3 | E184: =INDEX(Input!$E$25:$E$30,MATCH($C184,Input!$C$25:$C$30,0)) -> Rate 6 | G184: Large Commercial | J184: =J69*J122/100 -> 0 | K184: 687.97665
C185: Rate 6 | D185: m3 | J185: =SUM(J183:J184) -> 0 | K185: =SUM(K183:K184) -> 1300.029075
C187: Total Revenue
E188: Rate Class | G188: Customer Type
C189: Existing Residential | D189: m3 | E189: =INDEX(Input!$E$25:$E$30,MATCH($C189,Input!$C$25:$C$30,0)) -> Rate 1 | G189: =C189 -> Existing Residential | J189: =J129+J141+J153+J165+J177 -> 49442.98432 | K189: =K129+K141+K153+K165+K177 -> 577533.5042
C190: New Residential | D190: m3 | E190: =INDEX(Input!$E$25:$E$30,MATCH($C190,Input!$C$25:$C$30,0)) -> Rate 1 | G190: =C190 -> New Residential | J190: =J130+J142+J154+J166+J178 -> 3772.831011 | K190: 44069.69065
C191: Small Commercial | D191: m3 | E191: =INDEX(Input!$E$25:$E$30,MATCH($C191,Input!$C$25:$C$30,0)) -> Rate 1 | G191: Small Commercial | J191: =J131+J143+J155+J167+J179 -> 664.6875502 | K191: 12814.71621
C192: Small Agricultural | D192: m3 | E192: =INDEX(Input!$E$25:$E$30,MATCH($C192,Input!$C$25:$C$30,0)) -> Rate 1 | G192: Small Agricultural | J192: =J132+J144+J156+J168+J180 -> 0 | K192: 0
C193: Rate 1 | D193: m3 | J193: =SUM(J189:J192) -> 53880.50289 | K193: =SUM(K189:K192) -> 634417.911
C195: Medium Commercial | D195: m3 | E195: =INDEX(Input!$E$25:$E$30,MATCH($C195,Input!$C$25:$C$30,0)) -> Rate 6 | G195: =C195 -> Medium Commercial | J195: =J135+J147+J159+J171+J183 -> 0 | K195: =K135+K147+K159+K171+K183 -> 16679.70854
C196: Large Commercial | D196: m3 | E196: =INDEX(Input!$E$25:$E$30,MATCH($C196,Input!$C$25:$C$30,0)) -> Rate 6 | G196: Large Commercial | J196: =J136+J148+J160+J172+J184 -> 0 | K196: 18134.8826
C197: Rate 6 | D197: m3 | J197: =SUM(J195:J196) -> 0 | K197: =SUM(K195:K196) -> 34814.59114
C200: Actual / Forecast
C202: Volume by Customer Type by Tiers
C204: Tier 1
E205: Rate Class | F205: Tier | G205: Customer Type
C206: Existing Residential | D206: m3 | E206: =INDEX(Input!$E$25:$E$30,MATCH($C206,Input!$C$25:$C$30,0)) -> Rate 1 | F206: =C204 -> Tier 1 | G206: =C206 -> Existing Residential | J206: =SUMIFS(VolumeData!T$33:T$54,VolumeData!$C$33:$C$54,$E206,VolumeData!$D$33:$D$54,$F206,VolumeData!$G$33:$G$54,$G206) -> 2517.176192 | K206: =SUMIFS(VolumeData!U$33:U$54,VolumeData!$C$33:$C$54,$E206,VolumeData!$D$33:$D$54,$F206,VolumeData!$G$33:$G$54,$G206) -> 506667.8488
C207: New Residential | D207: m3 | E207: =INDEX(Input!$E$25:$E$30,MATCH($C207,Input!$C$25:$C$30,0)) -> Rate 1 | F207: =C204 -> Tier 1 | G207: =C207 -> New Residential | J207: =SUMIFS(VolumeData!T$33:T$54,VolumeData!$C$33:$C$54,$E207,VolumeData!$D$33:$D$54,$F207,VolumeData!$G$33:$G$54,$G207) -> 199.7238084 | K207: =SUMIFS(VolumeData!U$33:U$54,VolumeData!$C$33:$C$54,$E207,VolumeData!$D$33:$D$54,$F207,VolumeData!$G$33:$G$54,$G207) -> 40201.25119
C208: Small Commercial | D208: m3 | E208: =INDEX(Input!$E$25:$E$30,MATCH($C208,Input!$C$25:$C$30,0)) -> Rate 1 | F208: =C204 -> Tier 1 | G208: Small Commercial | J208: =SUMIFS(VolumeData!T$33:T$54,VolumeData!$C$33:$C$54,$E208,VolumeData!$D$33:$D$54,$F208,VolumeData!$G$33:$G$54,$G208) -> 0 | K208: =SUMIFS(VolumeData!U$33:U$54,VolumeData!$C$33:$C$54,$E208,VolumeData!$D$33:$D$54,$F208,VolumeData!$G$33:$G$54,$G208) -> 9031.8
C209: Small Agricultural | D209: m3 | E209: =INDEX(Input!$E$25:$E$30,MATCH($C209,Input!$C$25:$C$30,0)) -> Rate 1 | F209: =C204 -> Tier 1 | G209: Small Agricultural | J209: =SUMIFS(VolumeData!T$33:T$54,VolumeData!$C$33:$C$54,$E209,VolumeData!$D$33:$D$54,$F209,VolumeData!$G$33:$G$54,$G209) -> 0 | K209: =SUMIFS(VolumeData!U$33:U$54,VolumeData!$C$33:$C$54,$E209,VolumeData!$D$33:$D$54,$F209,VolumeData!$G$33:$G$54,$G209) -> 0
C210: Rate 1 | D210: m3 | J210: =SUM(J206:J209) -> 2716.9 | K210: =SUM(K206:K209) -> 555900.9
C212: Medium Commercial | D212: m3 | E212: =INDEX(Input!$E$25:$E$30,MATCH($C212,Input!$C$25:$C$30,0)) -> Rate 6 | F212: =C204 -> Tier 1 | G212: =C212 -> Medium Commercial | J212: =SUMIFS(VolumeData!T$33:T$54,VolumeData!$C$33:$C$54,$E212,VolumeData!$D$33:$D$54,$F212,VolumeData!$G$33:$G$54,$G212) -> 0 | K212: =SUMIFS(VolumeData!U$33:U$54,VolumeData!$C$33:$C$54,$E212,VolumeData!$D$33:$D$54,$F212,VolumeData!$G$33:$G$54,$G212) -> 5510
C213: Large Commercial | D213: m3 | E213: =INDEX(Input!$E$25:$E$30,MATCH($C213,Input!$C$25:$C$30,0)) -> Rate 6 | F213: =C204 -> Tier 1 | G213: Large Commercial | J213: =SUMIFS(VolumeData!T$33:T$54,VolumeData!$C$33:$C$54,$E213,VolumeData!$D$33:$D$54,$F213,VolumeData!$G$33:$G$54,$G213) -> 0 | K213: =SUMIFS(VolumeData!U$33:U$54,VolumeData!$C$33:$C$54,$E213,VolumeData!$D$33:$D$54,$F213,VolumeData!$G$33:$G$54,$G213) -> 10000
C214: Rate 6 | D214: m3 | J214: =SUM(J212:J213) -> 0 | K214: =SUM(K212:K213) -> 15510
C216: Tier 2
E217: Rate Class | F217: Tier | G217: Customer Type
C218: Existing Residential | D218: m3 | E218: =INDEX(Input!$E$25:$E$30,MATCH($C218,Input!$C$25:$C$30,0)) -> Rate 1 | F218: =C216 -> Tier 2 | G218: =C218 -> Existing Residential | J218: =SUMIFS(VolumeData!T$33:T$54,VolumeData!$C$33:$C$54,$E218,VolumeData!$D$33:$D$54,$F218,VolumeData!$G$33:$G$54,$G218) -> 332.7104364 | K218: =SUMIFS(VolumeData!U$33:U$54,VolumeData!$C$33:$C$54,$E218,VolumeData!$D$33:$D$54,$F218,VolumeData!$G$33:$G$54,$G218) -> 258366.7924
C219: New Residential | D219: m3 | E219: =INDEX(Input!$E$25:$E$30,MATCH($C219,Input!$C$25:$C$30,0)) -> Rate 1 | F219: =C216 -> Tier 2 | G219: =C219 -> New Residential | J219: =SUMIFS(VolumeData!T$33:T$54,VolumeData!$C$33:$C$54,$E219,VolumeData!$D$33:$D$54,$F219,VolumeData!$G$33:$G$54,$G219) -> 24.48956361 | K219: =SUMIFS(VolumeData!U$33:U$54,VolumeData!$C$33:$C$54,$E219,VolumeData!$D$33:$D$54,$F219,VolumeData!$G$33:$G$54,$G219) -> 19017.40764
C220: Small Commercial | D220: m3 | E220: =INDEX(Input!$E$25:$E$30,MATCH($C220,Input!$C$25:$C$30,0)) -> Rate 1 | F220: =C216 -> Tier 2 | G220: Small Commercial | J220: =SUMIFS(VolumeData!T$33:T$54,VolumeData!$C$33:$C$54,$E220,VolumeData!$D$33:$D$54,$F220,VolumeData!$G$33:$G$54,$G220) -> 0 | K220: =SUMIFS(VolumeData!U$33:U$54,VolumeData!$C$33:$C$54,$E220,VolumeData!$D$33:$D$54,$F220,VolumeData!$G$33:$G$54,$G220) -> 13582.2
C221: Small Agricultural | D221: m3 | E221: =INDEX(Input!$E$25:$E$30,MATCH($C221,Input!$C$25:$C$30,0)) -> Rate 1 | F221: =C216 -> Tier 2 | G221: Small Agricultural | J221: =SUMIFS(VolumeData!T$33:T$54,VolumeData!$C$33:$C$54,$E221,VolumeData!$D$33:$D$54,$F221,VolumeData!$G$33:$G$54,$G221) -> 0 | K221: =SUMIFS(VolumeData!U$33:U$54,VolumeData!$C$33:$C$54,$E221,VolumeData!$D$33:$D$54,$F221,VolumeData!$G$33:$G$54,$G221) -> 0
C222: Rate 1 | D222: m3 | J222: =SUM(J218:J221) -> 357.2 | K222: =SUM(K218:K221) -> 290966.4
C224: Medium Commercial | D224: m3 | E224: =INDEX(Input!$E$25:$E$30,MATCH($C224,Input!$C$25:$C$30,0)) -> Rate 6 | F224: =C216 -> Tier 2 | G224: =C224 -> Medium Commercial | J224: =SUMIFS(VolumeData!T$33:T$54,VolumeData!$C$33:$C$54,$E224,VolumeData!$D$33:$D$54,$F224,VolumeData!$G$33:$G$54,$G224) -> 0 | K224: =SUMIFS(VolumeData!U$33:U$54,VolumeData!$C$33:$C$54,$E224,VolumeData!$D$33:$D$54,$F224,VolumeData!$G$33:$G$54,$G224) -> 2689
C225: Large Commercial | D225: m3 | E225: =INDEX(Input!$E$25:$E$30,MATCH($C225,Input!$C$25:$C$30,0)) -> Rate 6 | F225: =C216 -> Tier 2 | G225: Large Commercial | J225: =SUMIFS(VolumeData!T$33:T$54,VolumeData!$C$33:$C$54,$E225,VolumeData!$D$33:$D$54,$F225,VolumeData!$G$33:$G$54,$G225) -> 0 | K225: =SUMIFS(VolumeData!U$33:U$54,VolumeData!$C$33:$C$54,$E225,VolumeData!$D$33:$D$54,$F225,VolumeData!$G$33:$G$54,$G225) -> 56088.7
C226: Rate 6 | D226: m3 | J226: =SUM(J224:J225) -> 0 | K226: =SUM(K224:K225) -> 58777.7
C228: Tier 3
E229: Rate Class | F229: Tier | G229: Customer Type
C230: Existing Residential | D230: m3 | E230: =INDEX(Input!$E$25:$E$30,MATCH($C230,Input!$C$25:$C$30,0)) -> Rate 1 | F230: =C228 -> Tier 3 | G230: =C230 -> Existing Residential | J230: =SUMIFS(VolumeData!T$33:T$54,VolumeData!$C$33:$C$54,$E230,VolumeData!$D$33:$D$54,$F230,VolumeData!$G$33:$G$54,$G230) -> 0 | K230: =SUMIFS(VolumeData!U$33:U$54,VolumeData!$C$33:$C$54,$E230,VolumeData!$D$33:$D$54,$F230,VolumeData!$G$33:$G$54,$G230) -> 11156.58738
C231: New Residential | D231: m3 | E231: =INDEX(Input!$E$25:$E$30,MATCH($C231,Input!$C$25:$C$30,0)) -> Rate 1 | F231: =C228 -> Tier 3 | G231: =C231 -> New Residential | J231: =SUMIFS(VolumeData!T$33:T$54,VolumeData!$C$33:$C$54,$E231,VolumeData!$D$33:$D$54,$F231,VolumeData!$G$33:$G$54,$G231) -> 0 | K231: =SUMIFS(VolumeData!U$33:U$54,VolumeData!$C$33:$C$54,$E231,VolumeData!$D$33:$D$54,$F231,VolumeData!$G$33:$G$54,$G231) -> 885.2126159
C232: Small Commercial | D232: m3 | E232: =INDEX(Input!$E$25:$E$30,MATCH($C232,Input!$C$25:$C$30,0)) -> Rate 1 | F232: =C228 -> Tier 3 | G232: Small Commercial | J232: =SUMIFS(VolumeData!T$33:T$54,VolumeData!$C$33:$C$54,$E232,VolumeData!$D$33:$D$54,$F232,VolumeData!$G$33:$G$54,$G232) -> 0 | K232: =SUMIFS(VolumeData!U$33:U$54,VolumeData!$C$33:$C$54,$E232,VolumeData!$D$33:$D$54,$F232,VolumeData!$G$33:$G$54,$G232) -> 8653.8
C233: Small Agricultural | D233: m3 | E233: =INDEX(Input!$E$25:$E$30,MATCH($C233,Input!$C$25:$C$30,0)) -> Rate 1 | F233: =C228 -> Tier 3 | G233: Small Agricultural | J233: =SUMIFS(VolumeData!T$33:T$54,VolumeData!$C$33:$C$54,$E233,VolumeData!$D$33:$D$54,$F233,VolumeData!$G$33:$G$54,$G233) -> 0 | K233: =SUMIFS(VolumeData!U$33:U$54,VolumeData!$C$33:$C$54,$E233,VolumeData!$D$33:$D$54,$F233,VolumeData!$G$33:$G$54,$G233) -> 0
C234: Rate 1 | D234: m3 | J234: =SUM(J230:J233) -> 0 | K234: =SUM(K230:K233) -> 20695.6
C236: Medium Commercial | D236: m3 | E236: =INDEX(Input!$E$25:$E$30,MATCH($C236,Input!$C$25:$C$30,0)) -> Rate 6 | F236: =C228 -> Tier 3 | G236: =C236 -> Medium Commercial | J236: =SUMIFS(VolumeData!T$33:T$54,VolumeData!$C$33:$C$54,$E236,VolumeData!$D$33:$D$54,$F236,VolumeData!$G$33:$G$54,$G236) -> 0 | K236: =SUMIFS(VolumeData!U$33:U$54,VolumeData!$C$33:$C$54,$E236,VolumeData!$D$33:$D$54,$F236,VolumeData!$G$33:$G$54,$G236) -> 0
C237: Large Commercial | D237: m3 | E237: =INDEX(Input!$E$25:$E$30,MATCH($C237,Input!$C$25:$C$30,0)) -> Rate 6 | F237: =C228 -> Tier 3 | G237: Large Commercial | J237: =SUMIFS(VolumeData!T$33:T$54,VolumeData!$C$33:$C$54,$E237,VolumeData!$D$33:$D$54,$F237,VolumeData!$G$33:$G$54,$G237) -> 0 | K237: =SUMIFS(VolumeData!U$33:U$54,VolumeData!$C$33:$C$54,$E237,VolumeData!$D$33:$D$54,$F237,VolumeData!$G$33:$G$54,$G237) -> 44542
C238: Rate 6 | D238: m3 | J238: =SUM(J236:J237) -> 0 | K238: =SUM(K236:K237) -> 44542
C240: Total Volume
E241: Rate Class | G241: Customer Type
C242: Existing Residential | D242: m3 | E242: =INDEX(Input!$E$25:$E$30,MATCH($C242,Input!$C$25:$C$30,0)) -> Rate 1 | G242: =C242 -> Existing Residential | J242: =J206+J218+J230 -> 2849.886628 | K242: =K206+K218+K230 -> 776191.2286
C243: New Residential | D243: m3 | E243: =INDEX(Input!$E$25:$E$30,MATCH($C243,Input!$C$25:$C$30,0)) -> Rate 1 | G243: =C243 -> New Residential | J243: =J207+J219+J231 -> 224.213372 | K243: 60103.87145
C244: Small Commercial | D244: m3 | E244: =INDEX(Input!$E$25:$E$30,MATCH($C244,Input!$C$25:$C$30,0)) -> Rate 1 | G244: Small Commercial | J244: =J208+J220+J232 -> 0 | K244: 31267.8
C245: Small Agricultural | D245: m3 | E245: =INDEX(Input!$E$25:$E$30,MATCH($C245,Input!$C$25:$C$30,0)) -> Rate 1 | G245: Small Agricultural | J245: =J209+J221+J233 -> 0 | K245: 0
C246: Rate 1 | D246: m3 | J246: =SUM(J242:J245) -> 3074.1 | K246: =SUM(K242:K245) -> 867562.9
C248: Medium Commercial | D248: m3 | E248: =INDEX(Input!$E$25:$E$30,MATCH($C248,Input!$C$25:$C$30,0)) -> Rate 6 | G248: =C248 -> Medium Commercial | J248: =J212+J224+J236 -> 0 | K248: =K212+K224+K236 -> 8199
C249: Large Commercial | D249: m3 | E249: =INDEX(Input!$E$25:$E$30,MATCH($C249,Input!$C$25:$C$30,0)) -> Rate 6 | G249: Large Commercial | J249: =J213+J225+J237 -> 0 | K249: 110630.7
C250: Rate 6 | D250: m3 | J250: =SUM(J248:J249) -> 0 | K250: =SUM(K248:K249) -> 118829.7
C252: Revenue by Customer Type by Tiers
C254: Tier 1
E255: Rate Class | F255: Tier | G255: Customer Type
C256: Existing Residential | D256: m3 | E256: =INDEX(Input!$E$25:$E$30,MATCH($C256,Input!$C$25:$C$30,0)) -> Rate 1 | F256: =C254 -> Tier 1 | G256: =C256 -> Existing Residential | J256: =J14*J206/100 -> 684.5894111 | K256: =K14*K206/100 -> 139946.7265
C257: New Residential | D257: m3 | E257: =INDEX(Input!$E$25:$E$30,MATCH($C257,Input!$C$25:$C$30,0)) -> Rate 1 | F257: =C254 -> Tier 1 | G257: =C257 -> New Residential | J257: =J15*J207/100 -> 54.31832894 | K257: 11103.98759
C258: Small Commercial | D258: m3 | E258: =INDEX(Input!$E$25:$E$30,MATCH($C258,Input!$C$25:$C$30,0)) -> Rate 1 | F258: =C254 -> Tier 1 | G258: Small Commercial | J258: =J16*J208/100 -> 0 | K258: 2494.673478
C259: Small Agricultural | D259: m3 | E259: =INDEX(Input!$E$25:$E$30,MATCH($C259,Input!$C$25:$C$30,0)) -> Rate 1 | F259: =C254 -> Tier 1 | G259: Small Agricultural | J259: =J17*J209/100 -> 0 | K259: 0
C260: Rate 1 | D260: m3 | J260: =SUM(J256:J259) -> 738.90774 | K260: =SUM(K256:K259) -> 153545.3876
... 53 more rows

Sheet Output
A1: =MID(CELL("filename",A1),FIND("]",CELL("filename",A1))+1,256) -> Output
C3: Master Check | D3: =Check!E18 -> 3.856257536e-10
G4: Summary
G5: ($)
H8: Col. 1 | I8: Col. 2 | J8: Col. 3 | K8: Col. 4
I9: Actual | J9: Actual | K9: Actual
G10: Forecasted Revenue | H10: Total | I10: =Input!I$3 -> 2019 | J10: =Input!J$3 -> 2020 | K10: =Input!K$3 -> 2021
F12: Row 1 | G12: CIP Common Assumptions | H12: =SUM(I12:K12) -> 723113.005 | I12: =I283+I291 -> 0 | J12: 53880.50289 | K12: 669232.5022
F13: Row 2 | G13: Actual / Forecast | H13: =SUM(I13:K13) -> 281035.695 | I13: =I309+I317 -> 0 | J13: 884.3409029 | K13: 280151.3541
F14: Row 3 | G14: Difference (negative = shortfall) | H14: =SUM(I14:K14) -> -442077.31 | I14: =I13-I12 -> 0 | J14: -52996.16198 | K14: -389081.148
G18: Projected Cumulative Deferral Account
G19: ($)
H22: =H$8 -> Col. 1 | I22: =I$8 -> Col. 2 | J22: Col. 3 | K22: Col. 4
I23: Actual | J23: Actual | K23: Actual
G24: Description | H24: Total | I24: =Input!I$3 -> 2019 | J24: =Input!J$3 -> 2020 | K24: =Input!K$3 -> 2021
F26: Row 1 | G26: Opening | I26: 0 | J26: =I30 -> 0 | K26: 0
F27: Row 2 | G27: Addition | H27: =SUM(I27:K27) -> 442077.31 | I27: =-MIN(0,I14) -> 0 | J27: =-MIN(0,J14) -> 52996.16198 | K27: 389081.148
F28: Row 3 | G28: Disposal | H28: =SUM(I28:K28) -> -443550.5399 | I28: =-SUM(I26:I27,I29) -> 0 | J28: =-SUM(J26:J27,J29) -> -53360.5106 | K28: =-SUM(K26:K27,K29) -> -390190.0293
F29: Row 4 | G29: Carrying Cost | H29: =SUM(I29:K29) -> 1473.229885 | I29: =(I26+0.5*I27)*I32 -> 0 | J29: 364.3486136 | K29: 1108.881272
F30: Row 5 | G30: Closing | I30: =SUM(I26:I29) -> 0 | J30: =SUM(J26:J29) -> 0 | K30: 2.364686225e-11
F31: Row 6
F32: Row 7 | G32: OEB Prescribed Rate (Annual Average) | I32: =Input!I7 -> 0.022475 | J32: =Input!J7 -> 0.01375 | K32: =Input!K7 -> 0.0057
G36: Revenue with CIP Common Assumptions
G37: ($)
H40: =H$8 -> Col. 1 | I40: =I$8 -> Col. 2 | J40: Col. 3 | K40: Col. 4
I41: Actual | J41: Actual | K41: Actual
G42: Description | H42: Total | I42: =Input!I$3 -> 2019 | J42: =Input!J$3 -> 2020 | K42: =Input!K$3 -> 2021
G44: =VolumeData!G$26 -> Existing Residential | H44: =SUM(I44:K44) -> 626976.4885 | I44: =Calculation!I189 -> 0 | J44: =Calculation!J189 -> 49442.98432 | K44: =Calculation!K189 -> 577533.5042
G45: =VolumeData!G$27 -> New Residential | H45: =SUM(I45:K45) -> 47842.52166 | I45: =Calculation!I190 -> 0 | J45: =Calculation!J190 -> 3772.831011 | K45: =Calculation!K190 -> 44069.69065
G46: =VolumeData!G$28 -> Small Commercial | H46: =SUM(I46:K46) -> 13479.40376 | I46: =Calculation!I191 -> 0 | J46: =Calculation!J191 -> 664.6875502 | K46: =Calculation!K191 -> 12814.71621
G47: =VolumeData!G$29 -> Small Agricultural | H47: =SUM(I47:K47) -> 0 | I47: =Calculation!I192 -> 0 | J47: =Calculation!J192 -> 0 | K47: =Calculation!K192 -> 0
G48: Rate 1 | H48: =SUM(I48:K48) -> 688298.4139 | I48: =SUM(I44:I47) -> 0 | J48: 53880.50289 | K48: 634417.911
G50: =VolumeData!G$30 -> Medium Commercial | H50: =SUM(I50:K50) -> 16679.70854 | I50: =Calculation!I195 -> 0 | J50: =Calculation!J195 -> 0 | K50: =Calculation!K195 -> 16679.70854
G51: =VolumeData!G$31 -> Large Commercial | H51: =SUM(I51:K51) -> 18134.8826 | I51: =Calculation!I196 -> 0 | J51: =Calculation!J196 -> 0 | K51: =Calculation!K196 -> 18134.8826
G52: Rate 6 | H52: =SUM(I52:K52) -> 34814.59114 | I52: =SUM(I50:I51) -> 0 | J52: 0 | K52: 34814.59114
G54: Rate 1 & Rate 6 Sum | H54: =SUM(I54:K54) -> 723113.005 | I54: =I48+I52 -> 0 | J54: =J48+J52 -> 53880.50289 | K54: 669232.5022
G58: Revenue with Actual / Forecast
G59: ($)
H62: =H$8 -> Col. 1 | I62: =I$8 -> Col. 2 | J62: Col. 3 | K62: Col. 4
I63: Actual | J63: Actual | K63: Actual
G64: Description | H64: Total | I64: =Input!I$3 -> 2019 | J64: =Input!J$3 -> 2020 | K64: =Input!K$3 -> 2021
G66: =VolumeData!G$26 -> Existing Residential | H66: =SUM(I66:K66) -> 226331.1069 | I66: =Calculation!I316 -> 0 | J66: =Calculation!J316 -> 819.8320058 | K66: =Calculation!K316 -> 225511.2749
G67: =VolumeData!G$27 -> New Residential | H67: =SUM(I67:K67) -> 17531.92536 | I67: =Calculation!I317 -> 0 | J67: =Calculation!J317 -> 64.50889709 | K67: =Calculation!K317 -> 17467.41647
G68: =VolumeData!G$28 -> Small Commercial | H68: =SUM(I68:K68) -> 8956.883044 | I68: =Calculation!I318 -> 0 | J68: =Calculation!J318 -> 0 | K68: =Calculation!K318 -> 8956.883044
G69: =VolumeData!G$29 -> Small Agricultural | H69: =SUM(I69:K69) -> 0 | I69: =Calculation!I319 -> 0 | J69: =Calculation!J319 -> 0 | K69: =Calculation!K319 -> 0
G70: Rate 1 | H70: =SUM(I70:K70) -> 252819.9153 | I70: =SUM(I66:I69) -> 0 | J70: 884.3409029 | K70: 251935.5744
G72: =VolumeData!G$30 -> Medium Commercial | H72: =SUM(I72:K72) -> 2095.20589 | I72: =Calculation!I322 -> 0 | J72: =Calculation!J322 -> 0 | K72: =Calculation!K322 -> 2095.20589
G73: =VolumeData!G$31 -> Large Commercial | H73: =SUM(I73:K73) -> 26120.57384 | I73: =Calculation!I323 -> 0 | J73: =Calculation!J323 -> 0 | K73: =Calculation!K323 -> 26120.57384
G74: Rate 6 | H74: =SUM(I74:K74) -> 28215.77973 | I74: =SUM(I72:I73) -> 0 | J74: 0 | K74: 28215.77973
G76: Rate 1 & Rate 6 Sum | H76: =SUM(I76:K76) -> 281035.695 | I76: =I70+I74 -> 0 | J76: =J70+J74 -> 884.3409029 | K76: 280151.3541
G80: Revenue Variance (Actual / Forecast less CIP)
G81: ($)
H84: =H$8 -> Col. 1 | I84: =I$8 -> Col. 2 | J84: Col. 3 | K84: Col. 4
I85: Actual | J85: Actual | K85: Actual
G86: Description | H86: Total | I86: =Input!I$3 -> 2019 | J86: =Input!J$3 -> 2020 | K86: =Input!K$3 -> 2021
G88: =VolumeData!G$26 -> Existing Residential | H88: =SUM(I88:K88) -> -400645.3816 | I88: =I66-I44 -> 0 | J88: =J66-J44 -> -48623.15232 | K88: -352022.2292
G89: =VolumeData!G$27 -> New Residential | H89: =SUM(I89:K89) -> -30310.5963 | I89: =I67-I45 -> 0 | J89: -3708.322114 | K89: -26602.27419
G90: =VolumeData!G$28 -> Small Commercial | H90: =SUM(I90:K90) -> -4522.520715 | I90: =I68-I46 -> 0 | J90: -664.6875502 | K90: -3857.833165
G91: =VolumeData!G$29 -> Small Agricultural | H91: =SUM(I91:K91) -> 0 | I91: =I69-I47 -> 0 | J91: 0 | K91: 0
G92: Rate 1 | H92: =SUM(I92:K92) -> -435478.4986 | I92: =SUM(I88:I91) -> 0 | J92: -52996.16198 | K92: -382482.3366
G94: =VolumeData!G$30 -> Medium Commercial | H94: =SUM(I94:K94) -> -14584.50265 | I94: =I72-I50 -> 0 | J94: 0 | K94: =K72-K50 -> -14584.50265
G95: =VolumeData!G$31 -> Large Commercial | H95: =SUM(I95:K95) -> 7985.691236 | I95: =I73-I51 -> 0 | J95: 0 | K95: 7985.691236
G96: Rate 6 | H96: =SUM(I96:K96) -> -6598.811414 | I96: =SUM(I94:I95) -> 0 | J96: 0 | K96: -6598.811414
G98: Rate 1 & Rate 6 Sum | H98: =SUM(I98:K98) -> -442077.31 | I98: =I92+I96 -> 0 | J98: =J92+J96 -> -52996.16198 | K98: -389081.148
G102: Actual / Forecasted Connection Count
G103: (Average Annual)
H106: =H$8 -> Col. 1 | I106: =I$8 -> Col. 2 | J106: Col. 3 | K106: Col. 4
I107: Actual | J107: Actual | K107: Actual
G108: Description | H108: Total | I108: =Input!I$3 -> 2019 | J108: =Input!J$3 -> 2020 | K108: =Input!K$3 -> 2021
G110: =VolumeData!G$26 -> Existing Residential | I110: 0 | J110: =VolumeData!H26 -> 80.60448624 | K110: =VolumeData!I26 -> 927.8780801
G111: =VolumeData!G$27 -> New Residential | I111: 0 | J111: =VolumeData!H27 -> 6.395513759 | K111: =VolumeData!I27 -> 73.62191988
G112: =VolumeData!G$28 -> Small Commercial | I112: 0 | J112: =VolumeData!H28 -> 0.5 | K112: =VolumeData!I28 -> 9.5
G113: =VolumeData!G$29 -> Small Agricultural | I113: 0 | J113: =VolumeData!H29 -> 0 | K113: =VolumeData!I29 -> 0
G114: Rate 1 | I114: =SUM(I110:I113) -> 0 | J114: =SUM(J110:J113) -> 87.5 | K114: =SUM(K110:K113) -> 1011
G116: =VolumeData!G$30 -> Medium Commercial | I116: 0 | J116: =VolumeData!H30 -> 0 | K116: =VolumeData!I30 -> 2.5
G117: =VolumeData!G$31 -> Large Commercial | I117: 0 | J117: =VolumeData!H31 -> 0 | K117: =VolumeData!I31 -> 1
G118: Rate 6 | I118: =SUM(I116:I117) -> 0 | J118: =SUM(J116:J117) -> 0 | K118: =SUM(K116:K117) -> 3.5
G122: Volume per Customer with CIP Common Assumptions
G123: (m3 / connection / year)
H126: Col. 1
G128: Description
G130: =VolumeData!G$26 -> Existing Residential | H130: 2149
G131: =VolumeData!G$27 -> New Residential | H131: 2066
G132: =VolumeData!G$28 -> Small Commercial | H132: 4693
G133: =VolumeData!G$29 -> Small Agricultural | H133: 4720
G135: =VolumeData!G$30 -> Medium Commercial | H135: 26933
G136: =VolumeData!G$31 -> Large Commercial | H136: 75685
G140: Volume with CIP Common Assumptions
G141: (m3)
H144: =H$8 -> Col. 1 | I144: =I$8 -> Col. 2 | J144: Col. 3 | K144: Col. 4
I145: Actual | J145: Actual | K145: Actual
G146: Description | H146: Total | I146: =Input!I$3 -> 2019 | J146: =Input!J$3 -> 2020 | K146: =Input!K$3 -> 2021
G148: =VolumeData!G$26 -> Existing Residential | H148: =SUM(I148:K148) -> 2167229.035 | I148: =I110*$H130 -> 0 | J148: 173219.0409 | K148: 1994009.994
G149: =VolumeData!G$27 -> New Residential | H149: =SUM(I149:K149) -> 165316.0179 | I149: =I111*$H131 -> 0 | J149: 13213.13143 | K149: 152102.8865
G150: =VolumeData!G$28 -> Small Commercial | H150: =SUM(I150:K150) -> 46930 | I150: =I112*$H132 -> 0 | J150: 2346.5 | K150: 44583.5
G151: =VolumeData!G$29 -> Small Agricultural | H151: =SUM(I151:K151) -> 0 | I151: =I113*$H133 -> 0 | J151: 0 | K151: 0
G152: Rate 1 | H152: =SUM(I152:K152) -> 2379475.053 | I152: =SUM(I148:I151) -> 0 | J152: =SUM(J148:J151) -> 188778.6724 | K152: =SUM(K148:K151) -> 2190696.381
G154: =VolumeData!G$30 -> Medium Commercial | H154: =SUM(I154:K154) -> 67332.5 | I154: =I116*$H135 -> 0 | J154: 0 | K154: 67332.5
G155: =VolumeData!G$31 -> Large Commercial | H155: =SUM(I155:K155) -> 75685 | I155: =I117*$H136 -> 0 | J155: 0 | K155: 75685
G156: Rate 6 | H156: =SUM(I156:K156) -> 143017.5 | I156: =SUM(I154:I155) -> 0 | J156: =SUM(J154:J155) -> 0 | K156: =SUM(K154:K155) -> 143017.5
G160: Volume with Actual / Forecast
G161: (m3)
H164: =H$8 -> Col. 1 | I164: =I$8 -> Col. 2 | J164: Col. 3 | K164: Col. 4
I165: Actual | J165: Actual | K165: Actual
G166: Description | H166: Total | I166: =Input!I$3 -> 2019 | J166: =Input!J$3 -> 2020 | K166: =Input!K$3 -> 2021
G168: =VolumeData!G$26 -> Existing Residential | H168: =SUM(I168:K168) -> 779041.1152 | I168: 0 | J168: =VolumeData!T57 -> 2849.886628 | K168: =VolumeData!U57 -> 776191.2286
G169: =VolumeData!G$27 -> New Residential | H169: =SUM(I169:K169) -> 60328.08482 | I169: 0 | J169: =VolumeData!T58 -> 224.213372 | K169: =VolumeData!U58 -> 60103.87145
G170: =VolumeData!G$28 -> Small Commercial | H170: =SUM(I170:K170) -> 31267.8 | I170: 0 | J170: =VolumeData!T59 -> 0 | K170: =VolumeData!U59 -> 31267.8
G171: =VolumeData!G$29 -> Small Agricultural | H171: =SUM(I171:K171) -> 0 | I171: 0 | J171: =VolumeData!T60 -> 0 | K171: =VolumeData!U60 -> 0
G172: Rate 1 | H172: =SUM(I172:K172) -> 870637 | I172: =SUM(I168:I171) -> 0 | J172: 3074.1 | K172: =SUM(K168:K171) -> 867562.9
G174: =VolumeData!G$30 -> Medium Commercial | H174: =SUM(I174:K174) -> 8199 | I174: 0 | J174: =VolumeData!T61 -> 0 | K174: =VolumeData!U61 -> 8199
G175: =VolumeData!G$31 -> Large Commercial | H175: =SUM(I175:K175) -> 110630.7 | I175: 0 | J175: =VolumeData!T62 -> 0 | K175: =VolumeData!U62 -> 110630.7
G176: Rate 6 | H176: =SUM(I176:K176) -> 118829.7 | I176: =SUM(I174:I175) -> 0 | J176: 0 | K176: =SUM(K174:K175) -> 118829.7
G180: Volume Variance (Actual / Forecast less CIP)
G181: (m3)
H184: =H$8 -> Col. 1 | I184: =I$8 -> Col. 2 | J184: Col. 3 | K184: Col. 4
I185: Actual | J185: Actual | K185: Actual
G186: Description | H186: Total | I186: =Input!I$3 -> 2019 | J186: =Input!J$3 -> 2020 | K186: =Input!K$3 -> 2021
G188: =VolumeData!G$26 -> Existing Residential | H188: =SUM(I188:K188) -> -1388187.92 | I188: =I168-I148 -> 0 | J188: =J168-J148 -> -170369.1543 | K188: -1217818.766
G189: =VolumeData!G$27 -> New Residential | H189: =SUM(I189:K189) -> -104987.9331 | I189: =I169-I149 -> 0 | J189: -12988.91805 | K189: -91999.01504
G190: =VolumeData!G$28 -> Small Commercial | H190: =SUM(I190:K190) -> -15662.2 | I190: =I170-I150 -> 0 | J190: -2346.5 | K190: -13315.7
G191: =VolumeData!G$29 -> Small Agricultural | H191: =SUM(I191:K191) -> 0 | I191: =I171-I151 -> 0 | J191: 0 | K191: 0
G192: Rate 1 | H192: =SUM(I192:K192) -> -1508838.053 | I192: =SUM(I188:I191) -> 0 | J192: -185704.5724 | K192: -1323133.481
G194: =VolumeData!G$30 -> Medium Commercial | H194: =SUM(I194:K194) -> -59133.5 | I194: =I174-I154 -> 0 | J194: =J174-J154 -> 0 | K194: -59133.5
G195: =VolumeData!G$31 -> Large Commercial | H195: =SUM(I195:K195) -> 34945.7 | I195: =I175-I155 -> 0 | J195: 0 | K195: 34945.7
G196: Rate 6 | H196: =SUM(I196:K196) -> -24187.8 | I196: =SUM(I194:I195) -> 0 | J196: 0 | K196: -24187.8
G200: Volume with CIP Common Assumptions by Tiers
G201: (m3)
H204: =H$8 -> Col. 1 | I204: =I$8 -> Col. 2 | J204: Col. 3 | K204: Col. 4
G206: Description | H206: Total | I206: =Input!I$3 -> 2019 | J206: =Input!J$3 -> 2020 | K206: =Input!K$3 -> 2021
F208: Row 1 | G208: Rate 1 - General Firm Service
F209: Row 2 | G209: Tier 1 | H209: =SUM(I209:K209) -> 1101914.233 | I209: =Input!I40 -> 0 | J209: =Input!J40 -> 87713.58208 | K209: =Input!K40 -> 1014200.651
F210: Row 3 | G210: Tier 2 | H210: =SUM(I210:K210) -> 1271362.571 | I210: =Input!I41 -> 0 | J210: =Input!J41 -> 100755.1778 | K210: =Input!K41 -> 1170607.393
F211: Row 4 | G211: Tier 3 | H211: =SUM(I211:K211) -> 6198.249204 | I211: =Input!I42 -> 0 | J211: =Input!J42 -> 309.9124602 | K211: =Input!K42 -> 5888.336744
F212: Row 5 | G212: Sum | H212: =SUM(H209:H211) -> 2379475.053 | I212: =SUM(I209:I211) -> 0 | J212: 188778.6724 | K212: 2190696.381
F213: Row 6
F214: Row 7 | G214: Rate 6 - Large Volume General Firm Service
F215: Row 8 | G215: Tier 1 | H215: =SUM(I215:K215) -> 36294.18453 | I215: =Input!I47 -> 0 | J215: =Input!J47 -> 0 | K215: =Input!K47 -> 36294.18453
F216: Row 9 | G216: Tier 2 | H216: =SUM(I216:K216) -> 88546.36007 | I216: =Input!I48 -> 0 | J216: =Input!J48 -> 0 | K216: =Input!K48 -> 88546.36007
F217: Row 10 | G217: Tier 3 | H217: =SUM(I217:K217) -> 18176.95539 | I217: =Input!I49 -> 0 | J217: =Input!J49 -> 0 | K217: =Input!K49 -> 18176.95539
F218: Row 11 | G218: Sum | H218: =SUM(H215:H217) -> 143017.5 | I218: =SUM(I215:I217) -> 0 | J218: 0 | K218: 143017.5
G222: Volume with Actual / Forecast by Tiers
G223: (m3)
H226: =H$8 -> Col. 1 | I226: =I$8 -> Col. 2 | J226: Col. 3 | K226: Col. 4
G228: Description | H228: Total | I228: =Input!I$3 -> 2019 | J228: =Input!J$3 -> 2020 | K228: =Input!K$3 -> 2021
F230: Row 1 | G230: Rate 1 - General Firm Service
F231: Row 2 | G231: Tier 1 | H231: =SUM(I231:K231) -> 558617.8 | I231: =Input!I56 -> 0 | J231: =Input!J56 -> 2716.9 | K231: =Input!K56 -> 555900.9
F232: Row 3 | G232: Tier 2 | H232: =SUM(I232:K232) -> 291323.6 | I232: =Input!I57 -> 0 | J232: =Input!J57 -> 357.2 | K232: =Input!K57 -> 290966.4
F233: Row 4 | G233: Tier 3 | H233: =SUM(I233:K233) -> 20695.6 | I233: =Input!I58 -> 0 | J233: =Input!J58 -> 0 | K233: =Input!K58 -> 20695.6
F234: Row 5 | G234: Sum | H234: =SUM(H231:H233) -> 870637 | I234: =SUM(I231:I233) -> 0 | J234: 3074.1 | K234: 867562.9
F235: Row 6
F236: Row 7 | G236: Rate 6 - Large Volume General Firm Service
F237: Row 8 | G237: Tier 1 | H237: =SUM(I237:K237) -> 15510 | I237: =Input!I63 -> 0 | J237: =Input!J63 -> 0 | K237: =Input!K63 -> 15510
F238: Row 9 | G238: Tier 2 | H238: =SUM(I238:K238) -> 58777.7 | I238: =Input!I64 -> 0 | J238: =Input!J64 -> 0 | K238: =Input!K64 -> 58777.7
F239: Row 10 | G239: Tier 3 | H239: =SUM(I239:K239) -> 44542 | I239: =Input!I65 -> 0 | J239: =Input!J65 -> 0 | K239: =Input!K65 -> 44542
F240: Row 11 | G240: Sum | H240: =SUM(H237:H239) -> 118829.7 | I240: =SUM(I237:I239) -> 0 | J240: =SUM(J237:J239) -> 0 | K240: =SUM(K237:K239) -> 118829.7
G244: Volumetric Revenue Rates
G245: (cents / m3)
H248: =H$8 -> Col. 1 | I248: =I$8 -> Col. 2 | J248: Col. 3 | K248: Col. 4
G250: Description | I250: =Input!I$3 -> 2019 | J250: =Input!J$3 -> 2020 | K250: =Input!K$3 -> 2021
F252: Row 1 | G252: Rate 1 - General Firm Service
F253: Row 2 | G253: Tier 1 | I253: =Input!I75 -> 26.7948 | J253: =Input!J75 -> 27.196722 | K253: =Input!K75 -> 27.621
F254: Row 3 | G254: Tier 2 | I254: =Input!I76 -> 26.267 | J254: =Input!J76 -> 26.661005 | K254: =Input!K76 -> 27.0769
F255: Row 4 | G255: Tier 3 | I255: =Input!I77 -> 25.4911 | J255: =Input!J77 -> 25.8734665 | K255: =Input!K77 -> 26.2771
F256: Row 5 | G256: Upstream Recovery
F257: Row 6 | G257: Delay Rate Rider | I257: =Input!I79 -> 1.633 | J257: =Input!J79 -> 1.633 | K257: =Input!K79 -> 1.633
F258: Row 7
F259: Row 8
F260: Row 9 | G260: Rate 6 - Large Volume General Firm Service
F261: Row 10 | G261: Tier 1 | I261: =Input!I83 -> 24.7189 | J261: =Input!J83 -> 25.0897 | K261: =Input!K83 -> 25.4811
F262: Row 11 | G262: Tier 2 | I262: =Input!I84 -> 22.247 | J262: =Input!J84 -> 22.5807 | K262: =Input!K84 -> 22.933
F263: Row 12 | G263: Tier 3 | I263: =Input!I85 -> 21.1346 | J263: =Input!J85 -> 21.4516 | K263: =Input!K85 -> 21.7862
F264: Row 13 | G264: Upstream Recovery
F265: Row 14 | G265: Delay Rate Rider | I265: =Input!I87 -> 0.909 | J265: =Input!J87 -> 0.909 | K265: =Input!K87 -> 0.909
G269: Volumetric Revenue with CIP Common Assumptions
G270: ($)
H273: =H$8 -> Col. 1 | I273: =I$8 -> Col. 2 | J273: Col. 3 | K273: Col. 4
G275: Description | I275: =Input!I$3 -> 2019 | J275: =Input!J$3 -> 2020 | K275: =Input!K$3 -> 2021
F277: Row 1 | G277: Rate 1 - General Firm Service
F278: Row 2 | G278: Tier 1 | I278: =I209*I253/100 -> 0 | J278: 23855.21908 | K278: 280132.3619
F279: Row 3 | G279: Tier 2 | I279: =I210*I254/100 -> 0 | J279: 26862.343 | K279: 316964.1931
F280: Row 4 | G280: Tier 3 | I280: =I211*I255/100 -> 0 | J280: 80.18509657 | K280: 1547.284135
F281: Row 5 | G281: Upstream Recovery | I281: =I212*I256/100 -> 0 | J281: 0 | K281: 0
F282: Row 6 | G282: Delay Rate Rider | I282: =I212*I257/100 -> 0 | J282: 3082.75572 | K282: 35774.0719
F283: Row 7 | G283: Sum | I283: =SUM(I278:I282) -> 0 | J283: 53880.50289 | K283: 634417.911
F284: Row 8
F285: Row 9 | G285: Rate 6 - Large Volume General Firm Service
F286: Row 10 | G286: Tier 1 | I286: =I215*I261/100 -> 0 | J286: 0 | K286: 9248.157455
F287: Row 11 | G287: Tier 2 | I287: =I216*I262/100 -> 0 | J287: 0 | K287: 20306.33676
F288: Row 12 | G288: Tier 3 | I288: =I217*I263/100 -> 0 | J288: 0 | K288: 3960.067856
F289: Row 13 | G289: Upstream Recovery | I289: =I218*I264/100 -> 0 | J289: 0 | K289: 0
F290: Row 14 | G290: Delay Rate Rider | I290: =I218*I265/100 -> 0 | J290: 0 | K290: 1300.029075
F291: Row 15 | G291: Sum | I291: =SUM(I286:I290) -> 0 | J291: =SUM(J286:J290) -> 0 | K291: =SUM(K286:K290) -> 34814.59114
G295: Volumetric Revenue with Actual / Forecast
G296: ($)
H299: =H$8 -> Col. 1 | I299: =I$8 -> Col. 2 | J299: Col. 3 | K299: Col. 4
G301: Description | I301: =Input!I$3 -> 2019 | J301: =Input!J$3 -> 2020 | K301: =Input!K$3 -> 2021
F303: Row 1 | G303: Rate 1 - General Firm Service
F304: Row 2 | G304: Tier 1 | I304: =I231*I253/100 -> 0 | J304: 738.90774 | K304: 153545.3876
F305: Row 3 | G305: Tier 2 | I305: =I232*I254/100 -> 0 | J305: 95.23310986 | K305: 78784.68116
... 20 more rows

Sheet Check
A1: =MID(CELL("filename",A1),FIND("]",CELL("filename",A1))+1,256) -> Check
C3: Description | D3: Tab | E3: Value
C4: Revenues | E4: =SUM(Output!I322:K325) -> 0
C5: Volumes | E5: =SUM(Output!I322:K329) -> 3.856257536e-10
C18: Sum | E18: =SUM(E4:E17) -> 3.856257536e-10
